Workbook

Sheet Задача 1
A2: Название дискотеки | B2: Цена билета днем, руб | C2: Кол-во посетителей днем | D2: Цена билета ночью, руб | E2: Кол-во посетителей ночью | F2: Выручка с продажи билетов днем, руб | G2: Выручка с продажи билетов ночью, руб | H2: Кол-во рабочих дней в месяце | I2: Выручка с продажи билетов за месяц, руб | J2: Зарплата обслуживающему персоналу, руб | K2: Кол-во человек наемной охраны | L2: Зарплата охранника в месяц, руб | M2: Деньги на охрану, руб | N2: Коммунальные услуги, руб | O2: Затраты на бар, руб | P2: Выручка с бара, руб | Q2: Прибыль с бара, руб | R2: Затраты на рекламную кампанию, руб | S2: Прибыль с дискотеки без учета налога, руб | T2: Налог с прибыли дискотеки, руб | U2: Чистая прибыль, руб
A3: Триумф | B3: 140 | C3: 150 | D3: 250 | E3: 100 | H3: 25 | J3: 1000000 | K3: 8 | L3: 6000 | N3: 5000 | O3: 90000 | P3: 150000 | R3: 5000
A4: Д/к Газа | B4: 60 | C4: 200 | D4: 0 | E4: 0 | H4: 20 | J4: 30000 | K4: 8 | L4: 4000 | N4: 4000 | O4: 10000 | P4: 12500 | R4: 1000
A5: Манхеттен | B5: 0 | C5: 0 | D5: 100 | E5: 350 | H5: 20 | J5: 50000 | K5: 10 | L5: 7000 | N5: 7000 | O5: 80000 | P5: 100000 | R5: 10000
A6: Клео | B6: 0 | C6: 0 | D6: 70 | E6: 200 | H6: 15 | J6: 80000 | K6: 8 | L6: 4500 | N6: 5000 | O6: 50000 | P6: 75000 | R6: 6000
A7: Курьер | B7: 60 | C7: 150 | D7: 20 | E7: 100 | H7: 20 | J7: 50000 | K7: 7 | L7: 4000 | N7: 4000 | O7: 50000 | P7: 70000 | R7: 1000
A8: Роджер | B8: 120 | C8: 250 | D8: 0 | E8: 0 | H8: 20 | J8: 50000 | K8: 9 | L8: 3500 | N8: 3500 | O8: 80000 | P8: 90000 | R8: 1000
A9: Штрих | B9: 0 | C9: 0 | D9: 250 | E9: 100 | H9: 25 | J9: 60000 | K9: 10 | L9: 6000 | N9: 6000 | O9: 80000 | P9: 115000 | R9: 2000
A10: У лиса | B10: 0 | C10: 0 | D10: 300 | E10: 340 | H10: 15 | J10: 1000000 | K10: 16 | L10: 7000 | N10: 8000 | O10: 100000 | P10: 135000 | R10: 6000
A11: Star | B11: 0 | C11: 0 | D11: 200 | E11: 150 | H11: 15 | J11: 30000 | K11: 12 | L11: 4000 | N11: 5000 | O11: 70000 | P11: 90000 | R11: 1000
A12: Титаник | B12: 100 | C12: 170 | D12: 170 | E12: 100 | H12: 20 | J12: 65000 | K12: 8 | L12: 3500 | N12: 3500 | O12: 80000 | P12: 120000 | R12: 1500
A13: Максимальная стоимость билета днем, руб
A14: Максимальная стоимость билета ночью, руб
A15: Средняя выручка билетов за сутки, руб
A16: Общая сумма налога всех дискотек, руб
A17: Наименьшая чистая прибыль, полученная одной из дискотек, руб

Sheet расч зад 1 (hidden)
A2: Название дискотеки | B2: Цена билета днем, руб | C2: Кол-во посетителей днем | D2: Цена билета ночью, руб | E2: Кол-во посетителей ночью | F2: Выручка с продажи билетов днем, руб | G2: Выручка с продажи билетов ночью, руб | H2: Кол-во рабочих дней в месяце | I2: Выручка с продажи билетов за месяц, руб | J2: Зарплата обслуживающему персоналу, руб | K2: Кол-во человек наемной охраны | L2: Зарплата охранника в месяц, руб | M2: Деньги на охрану, руб | N2: Коммунальные услуги, руб | O2: Затраты на бар, руб | P2: Выручка с бара, руб | Q2: Прибыль с бара, руб | R2: Затраты на рекламную кампанию, руб | S2: Прибыль с дискотеки без учета налога, руб | T2: Налог с прибыли дискотеки, руб (13%) | U2: Чистая прибыль, руб
A3: Триумф | B3: 140 | C3: 150 | D3: 250 | E3: 100 | F3: =B3*C3 -> 21000 | G3: =D3*E3 -> 25000 | H3: 25 | I3: =(F3+G3)*H3 -> 1150000 | J3: 1000000 | K3: 8 | L3: 6000 | M3: =K3*L3 -> 48000 | N3: 5000 | O3: 90000 | P3: 150000 | Q3: =P3-O3 -> 60000 | R3: 5000 | S3: =I3-M3+Q3-J3-N3-R3 -> 152000 | T3: =S3*0.13 -> 19760 | U3: =S3-T3 -> 132240
A4: Д/к Газа | B4: 60 | C4: 200 | D4: 0 | E4: 0 | F4: =B4*C4 -> 12000 | G4: =D4*E4 -> 0 | H4: 20 | I4: =(F4+G4)*H4 -> 240000 | J4: 30000 | K4: 8 | L4: 4000 | M4: =K4*L4 -> 32000 | N4: 4000 | O4: 10000 | P4: 12500 | Q4: =P4-O4 -> 2500 | R4: 1000 | S4: =I4-M4+Q4-J4-N4-R4 -> 175500 | T4: =S4*0.13 -> 22815 | U4: =S4-T4 -> 152685
A5: Манхеттен | B5: 0 | C5: 0 | D5: 100 | E5: 350 | F5: 0 | G5: 35000 | H5: 20 | I5: 700000 | J5: 50000 | K5: 10 | L5: 7000 | M5: 70000 | N5: 7000 | O5: 80000 | P5: 100000 | Q5: 20000 | R5: 10000 | S5: 583000 | T5: 75790 | U5: 507210
A6: Клео | B6: 0 | C6: 0 | D6: 70 | E6: 200 | F6: 0 | G6: 14000 | H6: 15 | I6: 210000 | J6: 80000 | K6: 8 | L6: 4500 | M6: 36000 | N6: 5000 | O6: 50000 | P6: 75000 | Q6: 25000 | R6: 6000 | S6: 108000 | T6: 14040 | U6: 93960
A7: Курьер | B7: 60 | C7: 150 | D7: 20 | E7: 100 | F7: 9000 | G7: 2000 | H7: 20 | I7: 220000 | J7: 50000 | K7: 7 | L7: 4000 | M7: 28000 | N7: 4000 | O7: 50000 | P7: 70000 | Q7: 20000 | R7: 1000 | S7: 157000 | T7: 20410 | U7: 136590
A8: Роджер | B8: 120 | C8: 250 | D8: 0 | E8: 0 | F8: 30000 | G8: 0 | H8: 20 | I8: 600000 | J8: 50000 | K8: 9 | L8: 3500 | M8: 31500 | N8: 3500 | O8: 80000 | P8: 90000 | Q8: 10000 | R8: 1000 | S8: 524000 | T8: 68120 | U8: 455880
A9: Штрих | B9: 0 | C9: 0 | D9: 250 | E9: 100 | F9: 0 | G9: 25000 | H9: 25 | I9: 625000 | J9: 60000 | K9: 10 | L9: 6000 | M9: 60000 | N9: 6000 | O9: 80000 | P9: 115000 | Q9: 35000 | R9: 2000 | S9: 532000 | T9: 69160 | U9: 462840
A10: У лиса | B10: 0 | C10: 0 | D10: 300 | E10: 340 | F10: 0 | G10: 102000 | H10: 15 | I10: 1530000 | J10: 1000000 | K10: 16 | L10: 7000 | M10: 112000 | N10: 8000 | O10: 100000 | P10: 135000 | Q10: 35000 | R10: 6000 | S10: 439000 | T10: 57070 | U10: 381930
A11: Star | B11: 0 | C11: 0 | D11: 200 | E11: 150 | F11: 0 | G11: 30000 | H11: 15 | I11: 450000 | J11: 30000 | K11: 12 | L11: 4000 | M11: 48000 | N11: 5000 | O11: 70000 | P11: 90000 | Q11: 20000 | R11: 1000 | S11: 386000 | T11: 50180 | U11: 335820
A12: Титаник | B12: 100 | C12: 170 | D12: 170 | E12: 100 | F12: 17000 | G12: 17000 | H12: 20 | I12: 680000 | J12: 65000 | K12: 8 | L12: 3500 | M12: 28000 | N12: 3500 | O12: 80000 | P12: 120000 | Q12: 40000 | R12: 1500 | S12: 622000 | T12: 80860 | U12: 541140
A13: Максимальная стоимость билета днем, руб | E13: =MAX(B3:B12) -> 140
A14: Максимальная стоимость билета ночью, руб | E14: =MAX(D3:D12) -> 300
A15: Средняя выручка билетов за месяц, руб | E15: =AVERAGE(I3:I12) -> 640500
A16: Общая сумма налога всех дискотек, руб | E16: =SUM(T3:T12) -> 478205
A17: Наименьшая чистая прибыль, полученная одной из дискотек, руб | E17: =MIN(U3:U12) -> 93960 | J17: задача 1
A18: Выручка с продажи билетов днем, руб | B18: Выручка с продажи билетов ночью, руб | C18: Выручка с продажи билетов за месяц, руб | D18: Деньги на охрану, руб | E18: Прибыль с бара, руб | F18: Прибыль с дискотеки без учета налога, руб | G18: Налог с прибыли дискотеки, руб (13%) | H18: Чистая прибыль, руб
A19: =IF(F3='Задача 1'!F3,1,0) -> 0 | B19: =IF(G3='Задача 1'!G3,1,0) -> 0 | C19: =IF(I3='Задача 1'!I3,1,0) -> 0 | D19: =IF(M3='Задача 1'!M3,1,0) -> 0 | E19: =IF(Q3='Задача 1'!Q3,1,0) -> 0 | F19: =IF(S3='Задача 1'!S3,1,0) -> 0 | G19: =IF(T3='Задача 1'!T3,1,0) -> 0 | H19: =IF(U3='Задача 1'!U3,1,0) -> 0
A20: =IF(F4='Задача 1'!F4,1,0) -> 0 | C20: =IF(I4='Задача 1'!I4,1,0) -> 0 | D20: =IF(M4='Задача 1'!M4,1,0) -> 0 | E20: =IF(Q4='Задача 1'!Q4,1,0) -> 0 | F20: =IF(S4='Задача 1'!S4,1,0) -> 0 | G20: =IF(T4='Задача 1'!T4,1,0) -> 0 | H20: =IF(U4='Задача 1'!U4,1,0) -> 0
B21: =IF(G5='Задача 1'!G5,1,0) -> 0 | C21: =IF(I5='Задача 1'!I5,1,0) -> 0 | D21: =IF(M5='Задача 1'!M5,1,0) -> 0 | E21: =IF(Q5='Задача 1'!Q5,1,0) -> 0 | F21: =IF(S5='Задача 1'!S5,1,0) -> 0 | G21: =IF(T5='Задача 1'!T5,1,0) -> 0 | H21: =IF(U5='Задача 1'!U5,1,0) -> 0
B22: =IF(G6='Задача 1'!G6,1,0) -> 0 | C22: =IF(I6='Задача 1'!I6,1,0) -> 0 | D22: =IF(M6='Задача 1'!M6,1,0) -> 0 | E22: =IF(Q6='Задача 1'!Q6,1,0) -> 0 | F22: =IF(S6='Задача 1'!S6,1,0) -> 0 | G22: =IF(T6='Задача 1'!T6,1,0) -> 0 | H22: =IF(U6='Задача 1'!U6,1,0) -> 0
A23: =IF(F7='Задача 1'!F7,1,0) -> 0 | B23: =IF(G7='Задача 1'!G7,1,0) -> 0 | C23: =IF(I7='Задача 1'!I7,1,0) -> 0 | D23: =IF(M7='Задача 1'!M7,1,0) -> 0 | E23: =IF(Q7='Задача 1'!Q7,1,0) -> 0 | F23: =IF(S7='Задача 1'!S7,1,0) -> 0 | G23: =IF(T7='Задача 1'!T7,1,0) -> 0 | H23: =IF(U7='Задача 1'!U7,1,0) -> 0
A24: =IF(F8='Задача 1'!F8,1,0) -> 0 | C24: =IF(I8='Задача 1'!I8,1,0) -> 0 | D24: =IF(M8='Задача 1'!M8,1,0) -> 0 | E24: =IF(Q8='Задача 1'!Q8,1,0) -> 0 | F24: =IF(S8='Задача 1'!S8,1,0) -> 0 | G24: =IF(T8='Задача 1'!T8,1,0) -> 0 | H24: =IF(U8='Задача 1'!U8,1,0) -> 0
B25: =IF(G9='Задача 1'!G9,1,0) -> 0 | C25: =IF(I9='Задача 1'!I9,1,0) -> 0 | D25: =IF(M9='Задача 1'!M9,1,0) -> 0 | E25: =IF(Q9='Задача 1'!Q9,1,0) -> 0 | F25: =IF(S9='Задача 1'!S9,1,0) -> 0 | G25: =IF(T9='Задача 1'!T9,1,0) -> 0 | H25: =IF(U9='Задача 1'!U9,1,0) -> 0
B26: =IF(G10='Задача 1'!G10,1,0) -> 0 | C26: =IF(I10='Задача 1'!I10,1,0) -> 0 | D26: =IF(M10='Задача 1'!M10,1,0) -> 0 | E26: =IF(Q10='Задача 1'!Q10,1,0) -> 0 | F26: =IF(S10='Задача 1'!S10,1,0) -> 0 | G26: =IF(T10='Задача 1'!T10,1,0) -> 0 | H26: =IF(U10='Задача 1'!U10,1,0) -> 0
B27: =IF(G11='Задача 1'!G11,1,0) -> 0 | C27: =IF(I11='Задача 1'!I11,1,0) -> 0 | D27: =IF(M11='Задача 1'!M11,1,0) -> 0 | E27: =IF(Q11='Задача 1'!Q11,1,0) -> 0 | F27: =IF(S11='Задача 1'!S11,1,0) -> 0 | G27: =IF(T11='Задача 1'!T11,1,0) -> 0 | H27: =IF(U11='Задача 1'!U11,1,0) -> 0
A28: =IF(F12='Задача 1'!F12,1,0) -> 0 | B28: =IF(G12='Задача 1'!G12,1,0) -> 0 | C28: =IF(I12='Задача 1'!I12,1,0) -> 0 | D28: =IF(M12='Задача 1'!M12,1,0) -> 0 | E28: =IF(Q12='Задача 1'!Q12,1,0) -> 0 | F28: =IF(S12='Задача 1'!S12,1,0) -> 0 | G28: =IF(T12='Задача 1'!T12,1,0) -> 0 | H28: =IF(U12='Задача 1'!U12,1,0) -> 0
A29: =COUNTIF(A19:A28,1) -> 0 | B29: =COUNTIF(B19:B28,1) -> 0 | C29: 0 | D29: 0 | E29: 0 | F29: 0 | G29: 0 | H29: 0
A30: =IF(A29<5,"пересчитай","верно") -> пересчитай | B30: =IF(B29<8,"пересчитай","верно") -> пересчитай | C30: =IF(C29<10,"пересчитай","верно") -> пересчитай | D30: пересчитай | E30: пересчитай | F30: пересчитай | G30: пересчитай | H30: пересчитай
A31: Максимальная стоимость билета днем, руб | E31: =IF(E13='Задача 1'!E13,1,0) -> 0 | F31: =IF(E31=0,"пересчитай","верно") -> пересчитай
A32: Максимальная стоимость билета ночью, руб | E32: =IF(E14='Задача 1'!E14,1,0) -> 0 | F32: =IF(E32=0,"пересчитай","верно") -> пересчитай
A33: Средняя выручка билетов за месяц, руб | E33: =IF(E15='Задача 1'!E15,1,0) -> 0 | F33: =IF(E33=0,"пересчитай","верно") -> пересчитай
A34: Общая сумма налога всех дискотек, руб | E34: =IF(E16='Задача 1'!E16,1,0) -> 0 | F34: =IF(E34=0,"пересчитай","верно") -> пересчитай
A35: Наименьшая чистая прибыль, полученная одной из дискотек, руб | E35: =IF(E17='Задача 1'!E17,1,0) -> 0 | F35: =IF(E35=0,"пересчитай","верно") -> пересчитай

Sheet результат 1
A1: Выручка с продажи билетов днем, руб | B1: Выручка с продажи билетов ночью, руб | C1: Выручка с продажи билетов за месяц, руб | D1: Деньги на охрану, руб | E1: Прибыль с бара, руб | F1: Прибыль с дискотеки без учета налога, руб | G1: Налог с прибыли дискотеки, руб (13%) | H1: Чистая прибыль, руб
A2: =REPT('расч зад 1'!A30,1) -> пересчитай | B2: =REPT('расч зад 1'!B30,1) -> пересчитай | C2: =REPT('расч зад 1'!C30,1) -> пересчитай | D2: =REPT('расч зад 1'!D30,1) -> пересчитай | E2: =REPT('расч зад 1'!E30,1) -> пересчитай | F2: =REPT('расч зад 1'!F30,1) -> пересчитай | G2: =REPT('расч зад 1'!G30,1) -> пересчитай | H2: =REPT('расч зад 1'!H30,1) -> пересчитай
A3: Максимальная стоимость билета днем, руб | E3: =REPT('расч зад 1'!F31,1) -> пересчитай
A4: Максимальная стоимость билета ночью, руб | E4: =REPT('расч зад 1'!F32,1) -> пересчитай
A5: Средняя выручка билетов за месяц, руб | E5: =REPT('расч зад 1'!F33,1) -> пересчитай
A6: Общая сумма налога всех дискотек, руб | E6: =REPT('расч зад 1'!F34,1) -> пересчитай
A7: Наименьшая чистая прибыль, полученная одной из дискотек, руб | E7: =REPT('расч зад 1'!F35,1) -> пересчитай

Sheet Задача 2
A2: Порядковый номер | B2: Номер рейса | C2: Модель самолета | D2: Маршрут | E2: Дата отправления | F2: Время отправления, ч, мин | G2: Цена билета для детей, руб | H2: Цена билета для взрослых, руб | I2: Разница во времени с Москвой в пункте назначения, ч | J2: Скидка для пенсионеров, % | K2: Цена билета для пенсионеров, руб | L2: Время прибытия местное, ч, мин | M2: Время полета, ч, мин | N2: Погодные условия в пункте прибытия | O2: Время задержки рейса, ч, мин | P2: Причина задержки | Q2: Время стоянки для дозаправки, ч, мин
A3: 1 | B3: 3405 | C3: ТУ-154 | D3: С.-Пб-Москва | E3: 2003-09-21 | F3: 23:30:00 | H3: 1500 | I3: 0 | J3: 5 | M3: 02:00:00 | N3: дождь, слякоть | O3: 01:00:00 | P3: погода | Q3: 00:00:00
A4: 2 | B4: 8907 | C4: ТУ-134 | D4: С.-Пб-Краснодар | E4: 2003-05-16 | F4: 15:30:00 | H4: 2250 | I4: 0 | J4: 5 | M4: 04:00:00 | N4: солнце, 26С | O4: 00:00:00 | Q4: 00:00:00
A5: 3 | B5: 6412 | C5: ИЛ-86 | D5: Москва-Сан-Франциско | E5: 2003-06-20 | F5: 21:45:00 | H5: 7500 | I5: 12 | J5: 7 | M5: 12:55:00 | N5: солнце, 40С | O5: 02:00:00 | P5: тех. пр. | Q5: 01:30:00
A6: 4 | B6: 8100 | C6: БОИНГ-747 | D6: Москва-Флорида | E6: 2003-07-30 | F6: 00:30:00 | H6: 8250 | I6: 7 | J6: 8 | M6: 08:00:00 | N6: дождь, 25С | O6: 00:00:00 | Q6: 00:00:00
A7: 5 | B7: 1040 | C7: А-310 | D7: С.-Пб-Акапулько | E7: 2003-03-17 | F7: 12:00:00 | H7: 9000 | I7: 12 | J7: 5 | M7: 13:30:00 | N7: тепло, 26С | O7: 00:00:00 | Q7: 01:30:00
A8: 6 | B8: 8610 | C8: ИЛ-62 | D8: Киев-Стамбул | E8: 2003-02-23 | F8: 13:50:00 | H8: 9450 | I8: 0 | J8: 4 | M8: 02:10:00 | N8: знойно, 42С | O8: 02:50:00 | P8: тех. пр. | Q8: 00:00:00
A9: 7 | B9: 2203 | C9: ТУ-204 | D9: Москва-Одесса-Майами | E9: 2003-01-15 | F9: 16:30:00 | H9: 10500 | I9: 7 | J9: 5.5 | M9: 11:30:00 | N9: жарко, 37С | O9: 00:00:00 | Q9: 00:30:00
A10: Минимальная цена билета для детей, руб
A11: Максимальная цена билета для детей, руб
A12: Максимальная цена билета для взрослых, руб
A13: Минимальная цена билета для взрослых, руб
A14: Максимальная цена билета для пенсионеров, руб
A15: Минимальная цена билета для пенсионеров, руб
A16: Общее время задержек рейсов, ч, мин
A17: Средняя цена билетов для детей, руб
A18: Средняя цена билетов для взрослых руб

Sheet расч зад 2 (hidden)
A2: Порядковый номер | B2: Номер рейса | C2: Модель самолета | D2: Маршрут | E2: Дата отправления | F2: Время отправления, ч, мин | G2: Цена билета для детей, руб | H2: Цена билета для взрослых, руб | I2: Разница во времени с Москвой в пункте назначения, ч | J2: Скидка для пенсионеров, % | K2: Цена билета для пенсионеров, руб | L2: Время прибытия местное, ч, мин | M2: Время полета, ч, мин | N2: Погодные условия в пункте прибытия | O2: Время задержки рейса, ч, мин | P2: Причина задержки | Q2: Время стоянки для дозаправки, ч, мин | T2: Цена билета для детей, руб | U2: Цена билета для пенсионеров, руб | V2: Время прибытия местное, ч, мин
A3: 1 | B3: 3405 | C3: ТУ-154 | D3: С.-Пб-Москва | E3: 2003-09-21 | F3: 23:30:00 | G3: =0.5*H3 -> 750 | H3: 1500 | I3: 0 | J3: 5 | K3: =H3-H3*J3/100 -> 1425 | L3: =IF(F3+O3+M3+Q3+I3>24,F3+O3+M3+Q3+I3-24,F3+O3+M3+Q3+I3) -> 1.104166667 | M3: 02:00:00 | N3: дождь, слякоть | O3: 01:00:00 | P3: погода | Q3: 00:00:00 | R3: = | T3: =IF(G3='Задача 2'!G3,1,0) -> 0 | U3: =IF(K3='Задача 2'!K3,1,0) -> 0 | V3: =IF(L3='Задача 2'!L3,1,0) -> 0
A4: 2 | B4: 8907 | C4: ТУ-134 | D4: С.-Пб-Краснодар | E4: 2003-05-16 | F4: 15:30:00 | G4: =0.5*H4 -> 1125 | H4: 2250 | I4: 0 | J4: 5 | K4: =H4-H4*J4/100 -> 2137.5 | L4: =IF(F4+O4+M4+Q4+I4>24,F4+O4+M4+Q4+I4-24,F4+O4+M4+Q4+I4) -> 19:30:00 | M4: 04:00:00 | N4: солнце, 26С | O4: 00:00:00 | Q4: 00:00:00 | T4: =IF(G4='Задача 2'!G4,1,0) -> 0 | U4: =IF(K4='Задача 2'!K4,1,0) -> 0 | V4: =IF(L4='Задача 2'!L4,1,0) -> 0
A5: 3 | B5: 6412 | C5: ИЛ-86 | D5: Москва-Сан-Франциско | E5: 2003-06-20 | F5: 21:45:00 | G5: 3750 | H5: 7500 | I5: 12 | J5: 7 | K5: 6975 | L5: 13.59027778 | M5: 12:55:00 | N5: солнце, 40С | O5: 02:00:00 | P5: тех. пр. | Q5: 01:30:00 | T5: =IF(G5='Задача 2'!G5,1,0) -> 0 | U5: =IF(K5='Задача 2'!K5,1,0) -> 0 | V5: =IF(L5='Задача 2'!L5,1,0) -> 0
A6: 4 | B6: 8100 | C6: БОИНГ-747 | D6: Москва-Флорида | E6: 2003-07-30 | F6: 00:30:00 | G6: 4125 | H6: 8250 | I6: 7 | J6: 8 | K6: 7590 | L6: 7.354166667 | M6: 08:00:00 | N6: дождь, 25С | O6: 00:00:00 | Q6: 00:00:00 | T6: =IF(G6='Задача 2'!G6,1,0) -> 0 | U6: =IF(K6='Задача 2'!K6,1,0) -> 0 | V6: =IF(L6='Задача 2'!L6,1,0) -> 0
A7: 5 | B7: 1040 | C7: А-310 | D7: С.-Пб-Акапулько | E7: 2003-03-17 | F7: 12:00:00 | G7: 4500 | H7: 9000 | I7: 12 | J7: 5 | K7: 8550 | L7: 13.125 | M7: 13:30:00 | N7: тепло, 26С | O7: 00:00:00 | Q7: 01:30:00 | T7: =IF(G7='Задача 2'!G7,1,0) -> 0 | U7: =IF(K7='Задача 2'!K7,1,0) -> 0 | V7: =IF(L7='Задача 2'!L7,1,0) -> 0
A8: 6 | B8: 8610 | C8: ИЛ-62 | D8: Киев-Стамбул | E8: 2003-02-23 | F8: 13:50:00 | G8: 4725 | H8: 9450 | I8: 0 | J8: 4 | K8: 9072 | L8: 18:50:00 | M8: 02:10:00 | N8: знойно, 42С | O8: 02:50:00 | P8: тех. пр. | Q8: 00:00:00 | T8: =IF(G8='Задача 2'!G8,1,0) -> 0 | U8: =IF(K8='Задача 2'!K8,1,0) -> 0 | V8: =IF(L8='Задача 2'!L8,1,0) -> 0
A9: 7 | B9: 2203 | C9: ТУ-204 | D9: Москва-Одесса-Майами | E9: 2003-01-15 | F9: 16:30:00 | G9: 5250 | H9: 10500 | I9: 7 | J9: 5.5 | K9: 9922.5 | L9: 8.1875 | M9: 11:30:00 | N9: жарко, 37С | O9: 00:00:00 | Q9: 00:30:00 | T9: =IF(G9='Задача 2'!G9,1,0) -> 0 | U9: =IF(K9='Задача 2'!K9,1,0) -> 0 | V9: =IF(L9='Задача 2'!L9,1,0) -> 0
A10: Минимальная цена билета для детей, руб | E10: =MIN(G3:G9) -> 750 | F10: =IF(E10='Задача 2'!E10,"верно","пересчитай") -> пересчитай | T10: =SUM(T3:T9) -> 0 | U10: =SUM(U3:U9) -> 0 | V10: =SUM(V3:V9) -> 0
A11: Максимальная цена билета для детей, руб | E11: =MAX(G3:G9) -> 5250 | F11: =IF(E11='Задача 2'!E11,"верно","пересчитай") -> пересчитай | T11: =IF(T10=7,"верно","пересчитай") -> пересчитай | U11: =IF(U10=7,"верно","пересчитай") -> пересчитай | V11: =IF(V10=7,"верно","пересчитай") -> пересчитай
A12: Максимальная цена билета для взрослых, руб | E12: =MAX(H3:H9) -> 10500 | F12: =IF(E12='Задача 2'!E12,"верно","пересчитай") -> пересчитай
A13: Минимальная цена билета для взрослых, руб | E13: =MIN(H3:H9) -> 1500 | F13: =IF(E13='Задача 2'!E13,"верно","пересчитай") -> пересчитай
A14: Максимальная цена билета для пенсионеров, руб | E14: =MAX(K3:K9) -> 9922.5 | F14: =IF(E14='Задача 2'!E14,"верно","пересчитай") -> пересчитай
A15: Минимальная цена билета для пенсионеров, руб | E15: =MIN(K3:K9) -> 1425 | F15: =IF(E15='Задача 2'!E15,"верно","пересчитай") -> пересчитай
A16: Общее время задержек рейсов, ч, мин | E16: =SUM(O3:O9) -> 05:50:00 | F16: =IF(E16='Задача 2'!E16,"верно","пересчитай") -> пересчитай
A17: Средняя цена билетов для детей, руб | E17: =AVERAGE(G3:G9) -> 3460.714286 | F17: =IF(E17='Задача 2'!E17,"верно","пересчитай") -> пересчитай
A18: Средняя цена билетов для взрослых руб | E18: =AVERAGE(H3:H9) -> 6921.428571 | F18: =IF(E18='Задача 2'!E18,"верно","пересчитай") -> пересчитай

Sheet результат 2
A1: Цена билета для детей, руб | B1: Цена билета для пенсионеров, руб | C1: Время прибытия местное, ч, мин
A2: =REPT('расч зад 2'!T11,1) -> пересчитай | B2: =REPT('расч зад 2'!U11,1) -> пересчитай | C2: =REPT('расч зад 2'!V11,1) -> пересчитай
A9: Минимальная цена билета для детей, руб | E9: =REPT('расч зад 2'!F10,1) -> пересчитай
A10: Максимальная цена билета для детей, руб | E10: =REPT('расч зад 2'!F11,1) -> пересчитай
A11: Максимальная цена билета для взрослых, руб | E11: =REPT('расч зад 2'!F12,1) -> пересчитай
A12: Минимальная цена билета для взрослых, руб | E12: =REPT('расч зад 2'!F13,1) -> пересчитай
A13: Максимальная цена билета для пенсионеров, руб | E13: =REPT('расч зад 2'!F14,1) -> пересчитай
A14: Минимальная цена билета для пенсионеров, руб | E14: =REPT('расч зад 2'!F15,1) -> пересчитай
A15: Общее время задержек рейсов, ч, мин | E15: =REPT('расч зад 2'!F16,1) -> пересчитай
A16: Средняя цена билетов для детей, руб | E16: =REPT('расч зад 2'!F17,1) -> пересчитай
A17: Средняя цена билетов для взрослых руб | E17: =REPT('расч зад 2'!F18,1) -> пересчитай

Sheet Задача 3
A2: Дата звонка | B2: Город | C2: Код города | D2: Номер телефона | E2: Стоимость одной минуты разговора, руб | F2: Время разговора, мин | G2: Начало разговора, ч, мин | H2: Дата поступления счета | I2: Начисление, руб | J2: Скидка, % | K2: Итого, руб | L2: Назначенная дата оплаты | M2: Дата оплаты | N2: Пеня | O2: Конечная стоимость, руб
A3: 28 мая | B3: Минск | C3: 172 | D3: 573580 | E3: 29.1 | F3: 14 | G3: 22:30:00 | H3: 10 июня | J3: 50 | L3: 16 июня | M3: 15 июня | N3: 0
A4: 30 мая | B4: Гомель | C4: 2322 | D4: 53084 | E4: 29.1 | F4: 8 | G4: 22:15:00 | H4: 11 июня | J4: 50 | L4: 16 июня | M4: 15 июня | N4: 0
A5: 2 июня | B5: Полярные зори | C5: 815 | D5: 83245 | E5: 9.7 | F5: 12 | G5: 15:10:00 | H5: 12 июня | J5: 0 | L5: 16 июня | M5: 15 июня | N5: 0
A6: 2 июня | B6: Псков | C6: 81122 | D6: 24760 | E6: 9.7 | F6: 5 | G6: 00:00:00 | H6: 13 июня | J6: 50 | L6: 16 июня | M6: 20 июня | N6: 0.1
A7: 5 июня | B7: Сосновый Бор | C7: 269 | D7: 46889 | E7: 9.7 | F7: 9 | G7: 22:05:00 | H7: 14 июня | J7: 50 | L7: 16 июня | M7: 20 июня | N7: 0.1
A8: 6 июня | B8: Апатиты | C8: 815 | D8: 64068 | E8: 9.7 | F8: 7 | G8: 18:30:00 | H8: 15 июня | J8: 0 | L8: 16 июня | M8: 15 июня | N8: 0
A9: 7 июня | B9: Речица | C9: 2340 | D9: 84056 | E9: 19.4 | F9: 13 | G9: 00:15:00 | H9: 16 июня | J9: 50 | L9: 16 июня | M9: 15 июня | N9: 0
A10: Сумма платежей за телефонные разговоры, руб
A11: Средняя сумма платяжей за телефонные разговоры, руб
A12: Максимальная стоимость одной минуты разговора, руб
A13: Максимальная начисленная стоимость всего разговора, руб
A14: Максимальная конечная стоимость всего разговора, руб

Sheet расч зад3 (hidden)
A1: Дата звонка | B1: Город | C1: Код города | D1: Номер телефона | E1: Стоимость одной минуты разговора, руб | F1: Время разговора, мин | G1: Начало разговора, ч, мин | H1: Дата поступления счета | I1: Начисление, руб | J1: Скидка, % | K1: Итого, руб | L1: Назначенная дата оплаты | M1: Дата оплаты | N1: Пеня | O1: Конечная стоимость, руб
A2: 28 мая | B2: Минск | C2: 172 | D2: 573580 | E2: 29.1 | F2: 14 | G2: 22:30:00 | H2: 10 июня | I2: =F2*E2 -> 407.4 | J2: 50 | K2: =I2-(I2/100*J2) -> 203.7 | L2: 16 июня | M2: 15 июня | N2: 0 | O2: =K2+K2*N2 -> 203.7
A3: 30 мая | B3: Гомель | C3: 2322 | D3: 53084 | E3: 29.1 | F3: 8 | G3: 22:15:00 | H3: 11 июня | I3: =F3*E3 -> 232.8 | J3: 50 | K3: =I3-(I3/100*J3) -> 116.4 | L3: 16 июня | M3: 15 июня | N3: 0 | O3: =K3+K3*N3 -> 116.4
A4: 2 июня | B4: Полярные зори | C4: 815 | D4: 83245 | E4: 9.7 | F4: 12 | G4: 15:10:00 | H4: 12 июня | I4: 116.4 | J4: 0 | K4: 116.4 | L4: 16 июня | M4: 15 июня | N4: 0 | O4: 116.4
A5: 2 июня | B5: Псков | C5: 81122 | D5: 24760 | E5: 9.7 | F5: 5 | G5: 00:00:00 | H5: 13 июня | I5: 48.5 | J5: 50 | K5: 24.25 | L5: 16 июня | M5: 20 июня | N5: 0.1 | O5: 26.675
A6: 5 июня | B6: Сосновый Бор | C6: 269 | D6: 46889 | E6: 9.7 | F6: 9 | G6: 22:05:00 | H6: 14 июня | I6: 87.3 | J6: 50 | K6: 43.65 | L6: 16 июня | M6: 20 июня | N6: 0.1 | O6: 48.015
A7: 6 июня | B7: Апатиты | C7: 815 | D7: 64068 | E7: 9.7 | F7: 7 | G7: 18:30:00 | H7: 15 июня | I7: 67.9 | J7: 0 | K7: 67.9 | L7: 16 июня | M7: 15 июня | N7: 0 | O7: 67.9
A8: 7 июня | B8: Речица | C8: 2340 | D8: 84056 | E8: 19.4 | F8: 13 | G8: 00:15:00 | H8: 16 июня | I8: 252.2 | J8: 50 | K8: 126.1 | L8: 16 июня | M8: 15 июня | N8: 0 | O8: 126.1
A9: Сумма платежей за телефонные разговоры, руб | D9: =SUM(O2:O8) -> 705.19 | E9: =IF(D9='Задача 3'!D10,"верно","пересчитай") -> пересчитай
A10: Средняя сумма платяжей за телефонные разговоры, руб | D10: =AVERAGE(O2:O8) -> 100.7414286 | E10: =IF(D10='Задача 3'!D11,"верно","пересчитай") -> пересчитай
A11: Максимальная стоимость одной минуты разговора, руб | D11: =MAX(E2:E8) -> 29.1 | E11: =IF(D11='Задача 3'!D12,"верно","пересчитай") -> пересчитай
A12: Максимальная начисленная стоимость всего разговора, руб | D12: =MAX(I2:I8) -> 407.4 | E12: =IF(D12='Задача 3'!D13,"верно","пересчитай") -> пересчитай
A13: Максимальная конечная стоимость всего разговора, руб | D13: =MAX(O2:O8) -> 203.7 | E13: =IF(D13='Задача 3'!D14,"верно","пересчитай") -> пересчитай
A15: Начисление, руб | B15: Итого, руб | C15: Конечная стоимость, руб
A16: =IF(I2='Задача 3'!I3,1,0) -> 0 | B16: =IF(K2='Задача 3'!K3,1,0) -> 0 | C16: =IF(O2='Задача 3'!O3,1,0) -> 0
A17: =IF(I3='Задача 3'!I4,1,0) -> 0 | B17: =IF(K3='Задача 3'!K4,1,0) -> 0 | C17: =IF(O3='Задача 3'!O4,1,0) -> 0
A18: =IF(I4='Задача 3'!I5,1,0) -> 0 | B18: =IF(K4='Задача 3'!K5,1,0) -> 0 | C18: =IF(O4='Задача 3'!O5,1,0) -> 0
A19: =IF(I5='Задача 3'!I6,1,0) -> 0 | B19: =IF(K5='Задача 3'!K6,1,0) -> 0 | C19: =IF(O5='Задача 3'!O6,1,0) -> 0
A20: =IF(I6='Задача 3'!I7,1,0) -> 0 | B20: =IF(K6='Задача 3'!K7,1,0) -> 0 | C20: =IF(O6='Задача 3'!O7,1,0) -> 0
A21: =IF(I7='Задача 3'!I8,1,0) -> 0 | B21: =IF(K7='Задача 3'!K8,1,0) -> 0 | C21: =IF(O7='Задача 3'!O8,1,0) -> 0
A22: =IF(I8='Задача 3'!I9,1,0) -> 0 | B22: =IF(K8='Задача 3'!K9,1,0) -> 0 | C22: =IF(O8='Задача 3'!O9,1,0) -> 0
A23: =SUM(A16:A22) -> 0 | B23: =SUM(B16:B22) -> 0 | C23: =SUM(C16:C22) -> 0
A24: =IF(A23=7,"верно","пересчитай") -> пересчитай | B24: =IF(B23=7,"верно","пересчитай") -> пересчитай | C24: =IF(C23=7,"верно","пересчитай") -> пересчитай

Sheet результат 3
A1: Начисление, руб | B1: Итого, руб | C1: Конечная стоимость, руб
A2: =REPT('расч зад3'!A24,1) -> пересчитай | B2: =REPT('расч зад3'!B24,1) -> пересчитай | C2: =REPT('расч зад3'!C24,1) -> пересчитай
A4: Сумма платежей за телефонные разговоры, руб | D4: =REPT('расч зад3'!E9,1) -> пересчитай
A5: Средняя сумма платяжей за телефонные разговоры, руб | D5: =REPT('расч зад3'!E10,1) -> пересчитай
A6: Максимальная стоимость одной минуты разговора, руб | D6: =REPT('расч зад3'!E11,1) -> пересчитай
A7: Максимальная начисленная стоимость всего разговора, руб | D7: =REPT('расч зад3'!E12,1) -> пересчитай
A8: Максимальная конечная стоимость всего разговора, руб | D8: =REPT('расч зад3'!E13,1) -> пересчитай

Sheet Задача 4
A2: Фамилия | B2: Отдел | C2: Должность | D2: Стаж работы, лет | E2: Тариф, руб | F2: Кол-во отработанных дней в месяце | G2: Начисленная зарплата, руб | H2: Подоходный налог, руб | I2: Отчисление в пенсионный фонд, руб | J2: Сумма к выдаче, руб | K2: Итоговая зарплата с учетом стажа, руб
A3: Ушкин | B3: ВЦ | C3: Инженер | D3: 0 | E3: 120 | F3: 22
A4: Уморов | B4: КО | C4: Экономист | D4: 3 | E4: 140 | F4: 20
A5: Заморов | B5: ВО | C5: Инспектор | D5: 3 | E5: 130 | F5: 19
A6: Дудкин | B6: КО | C6: Экономист | D6: 4 | E6: 150 | F6: 15
A7: Лопухов | B7: ВЦ | C7: Начальник | D7: 10 | E7: 180 | F7: 22
A8: носов | B8: КО | C8: Программист | D8: 5 | E8: 150 | F8: 22
A9: Горлов | B9: ВЦ | C9: Программист | D9: 7 | E9: 170 | F9: 21
A10: Ротов | B10: КО | C10: Экономист | D10: 2 | E10: 135 | F10: 19
A11: Ешкин | B11: ВО | C11: Начальник | D11: 4 | E11: 160 | F11: 20
A12: Маков | B12: ВО | C12: Инженер | D12: 8 | E12: 150 | F12: 22
A13: Сумма всех итоговых зарплат, руб
A14: Средняя зарплата, руб
A15: Минимальная зарплата сотрудников, руб
A16: Средний стаж сотрудников
A17: Максимальная зарплата сотрудника, руб

Sheet расч зад4 (hidden)
A1: Фамилия | B1: Отдел | C1: Должность | D1: Стаж работы, лет | E1: Тариф, руб | F1: Кол-во отработанных дней в месяце | G1: Начисленная зарплата, руб | H1: Подоходный налог, руб | I1: Отчисление в пенсионный фонд, руб | J1: Сумма к выдаче, руб | K1: Итоговая зарплата с учетом стажа, руб
A2: Ушкин | B2: ВЦ | C2: Инженер | D2: 0 | E2: 120 | F2: 22 | G2: =E2*F2 -> 2640 | H2: =G2*0.13 -> 343.2 | I2: =G2*0.01 -> 26.4 | J2: =G2-H2-I2 -> 2270.4 | K2: =IF(D2>3,1.15*J2,J2) -> 2270.4
A3: Уморов | B3: КО | C3: Экономист | D3: 3 | E3: 140 | F3: 20 | G3: =E3*F3 -> 2800 | H3: =G3*0.13 -> 364 | I3: =G3*0.01 -> 28 | J3: =G3-H3-I3 -> 2408 | K3: =IF(D3>3,1.15*J3,J3) -> 2408
A4: Заморов | B4: ВО | C4: Инспектор | D4: 3 | E4: 130 | F4: 19 | G4: 2470 | H4: 321.1 | I4: 24.7 | J4: 2124.2 | K4: 2124.2
A5: Дудкин | B5: КО | C5: Экономист | D5: 4 | E5: 150 | F5: 15 | G5: 2250 | H5: 292.5 | I5: 22.5 | J5: 1935 | K5: 2225.25
A6: Лопухов | B6: ВЦ | C6: Начальник | D6: 10 | E6: 180 | F6: 22 | G6: 3960 | H6: 514.8 | I6: 39.6 | J6: 3405.6 | K6: 3916.44
A7: носов | B7: КО | C7: Программист | D7: 5 | E7: 150 | F7: 22 | G7: 3300 | H7: 429 | I7: 33 | J7: 2838 | K7: 3263.7
A8: Горлов | B8: ВЦ | C8: Программист | D8: 7 | E8: 170 | F8: 21 | G8: 3570 | H8: 464.1 | I8: 35.7 | J8: 3070.2 | K8: 3530.73
A9: Ротов | B9: КО | C9: Экономист | D9: 2 | E9: 135 | F9: 19 | G9: 2565 | H9: 333.45 | I9: 25.65 | J9: 2205.9 | K9: 2205.9
A10: Ешкин | B10: ВО | C10: Начальник | D10: 4 | E10: 160 | F10: 20 | G10: 3200 | H10: 416 | I10: 32 | J10: 2752 | K10: 3164.8
A11: Маков | B11: ВО | C11: Инженер | D11: 8 | E11: 150 | F11: 22 | G11: 3300 | H11: 429 | I11: 33 | J11: 2838 | K11: 3263.7
A12: Сумма всех итоговых зарплат, руб | D12: =SUM(K2:K11) -> 28373.12 | E12: =IF(D12='Задача 4'!D13,"верно","пересчитай") -> пересчитай
A13: Средняя зарплата, руб | D13: =AVERAGE(K2:K11) -> 2837.312 | E13: =IF(D13='Задача 4'!D14,"верно","пересчитай") -> пересчитай
A14: Минимальная зарплата сотрудников, руб | D14: =MIN(K2:K11) -> 2124.2 | E14: =IF(D14='Задача 4'!D15,"верно","пересчитай") -> пересчитай
A15: Средний стаж сотрудников | D15: =AVERAGE(D2:D11) -> 4.6 | E15: =IF(D15='Задача 4'!D16,"верно","пересчитай") -> пересчитай
A16: Максимальная зарплата сотрудника, руб | D16: =MAX(K2:K11) -> 3916.44 | E16: =IF(D16='Задача 4'!D17,"верно","пересчитай") -> пересчитай
A18: Начисленная зарплата, руб | B18: Подоходный налог, руб | C18: Отчисление в пенсионный фонд, руб | D18: Сумма к выдаче, руб | E18: Итоговая зарплата с учетом стажа, руб
A19: =IF(G2='Задача 4'!G3,1,0) -> 0 | B19: =IF(H2='Задача 4'!H3,1,0) -> 0 | C19: =IF(I2='Задача 4'!I3,1,0) -> 0 | D19: =IF(J2='Задача 4'!J3,1,0) -> 0 | E19: =IF(K2='Задача 4'!K3,1,0) -> 0
A20: =IF(G3='Задача 4'!G4,1,0) -> 0 | B20: =IF(H3='Задача 4'!H4,1,0) -> 0 | C20: =IF(I3='Задача 4'!I4,1,0) -> 0 | D20: =IF(J3='Задача 4'!J4,1,0) -> 0 | E20: =IF(K3='Задача 4'!K4,1,0) -> 0
A21: =IF(G4='Задача 4'!G5,1,0) -> 0 | B21: =IF(H4='Задача 4'!H5,1,0) -> 0 | C21: =IF(I4='Задача 4'!I5,1,0) -> 0 | D21: =IF(J4='Задача 4'!J5,1,0) -> 0 | E21: =IF(K4='Задача 4'!K5,1,0) -> 0
A22: =IF(G5='Задача 4'!G6,1,0) -> 0 | B22: =IF(H5='Задача 4'!H6,1,0) -> 0 | C22: =IF(I5='Задача 4'!I6,1,0) -> 0 | D22: =IF(J5='Задача 4'!J6,1,0) -> 0 | E22: =IF(K5='Задача 4'!K6,1,0) -> 0
A23: =IF(G6='Задача 4'!G7,1,0) -> 0 | B23: =IF(H6='Задача 4'!H7,1,0) -> 0 | C23: =IF(I6='Задача 4'!I7,1,0) -> 0 | D23: =IF(J6='Задача 4'!J7,1,0) -> 0 | E23: =IF(K6='Задача 4'!K7,1,0) -> 0
A24: =IF(G7='Задача 4'!G8,1,0) -> 0 | B24: =IF(H7='Задача 4'!H8,1,0) -> 0 | C24: =IF(I7='Задача 4'!I8,1,0) -> 0 | D24: =IF(J7='Задача 4'!J8,1,0) -> 0 | E24: =IF(K7='Задача 4'!K8,1,0) -> 0
A25: =IF(G8='Задача 4'!G9,1,0) -> 0 | B25: =IF(H8='Задача 4'!H9,1,0) -> 0 | C25: =IF(I8='Задача 4'!I9,1,0) -> 0 | D25: =IF(J8='Задача 4'!J9,1,0) -> 0 | E25: =IF(K8='Задача 4'!K9,1,0) -> 0
A26: =IF(G9='Задача 4'!G10,1,0) -> 0 | B26: =IF(H9='Задача 4'!H10,1,0) -> 0 | C26: =IF(I9='Задача 4'!I10,1,0) -> 0 | D26: =IF(J9='Задача 4'!J10,1,0) -> 0 | E26: =IF(K9='Задача 4'!K10,1,0) -> 0
A27: =IF(G10='Задача 4'!G11,1,0) -> 0 | B27: =IF(H10='Задача 4'!H11,1,0) -> 0 | C27: =IF(I10='Задача 4'!I11,1,0) -> 0 | D27: =IF(J10='Задача 4'!J11,1,0) -> 0 | E27: =IF(K10='Задача 4'!K11,1,0) -> 0
A28: =IF(G11='Задача 4'!G12,1,0) -> 0 | B28: =IF(H11='Задача 4'!H12,1,0) -> 0 | C28: =IF(I11='Задача 4'!I12,1,0) -> 0 | D28: =IF(J11='Задача 4'!J12,1,0) -> 0 | E28: =IF(K11='Задача 4'!K12,1,0) -> 0
A29: =SUM(A19:A28) -> 0 | B29: =SUM(B19:B28) -> 0 | C29: =SUM(C19:C28) -> 0 | D29: =SUM(D19:D28) -> 0 | E29: =SUM(E19:E28) -> 0
A30: =IF(A29=10,"верно","пересчитай") -> пересчитай | B30: =IF(B29=10,"верно","пересчитай") -> пересчитай | C30: =IF(C29=10,"верно","пересчитай") -> пересчитай | D30: =IF(D29=10,"верно","пересчитай") -> пересчитай | E30: =IF(E29=10,"верно","пересчитай") -> пересчитай

Sheet результат4
A1: Начисленная зарплата, руб | B1: Подоходный налог, руб | C1: Отчисление в пенсионный фонд, руб | D1: Сумма к выдаче, руб | E1: Итоговая зарплата с учетом стажа, руб
A2: =REPT('расч зад4'!A30,1) -> пересчитай | B2: =REPT('расч зад4'!B30,1) -> пересчитай | C2: =REPT('расч зад4'!C30,1) -> пересчитай | D2: =REPT('расч зад4'!D30,1) -> пересчитай | E2: =REPT('расч зад4'!E30,1) -> пересчитай
A4: Сумма всех итоговых зарплат, руб | D4: =REPT('расч зад4'!E12,1) -> пересчитай
A5: Средняя зарплата, руб | D5: =REPT('расч зад4'!E13,1) -> пересчитай
A6: Минимальная зарплата сотрудников, руб | D6: =REPT('расч зад4'!E14,1) -> пересчитай
A7: Средний стаж сотрудников | D7: =REPT('расч зад4'!E15,1) -> пересчитай
A8: Максимальная зарплата сотрудника, руб | D8: =REPT('расч зад4'!E16,1) -> пересчитай

Sheet Задача 5
A2: Клиент (вкладчик) | B2: Кодовый номер вкладчика | C2: Наименование застрахованного товара | D2: Информация о вкладе | E2: Информация о вкладчике | F2: Стоимость страхового полиса, $ | G2: Ежемесячный взнос, % от вклада | H2: Срок страхования, мес | I2: Итоговая прибыль, $ | J2: Агент страхования | K2: Процент агента в месяц | L2: Дополнительные услуги, $ | M2: Итоговая Сумма, $ | N2: Выплата денег агентам, $
A3: Алексеев | B3: 1234 | C3: 2 машины | D3: BMW | E3: А-576 | F3: 30000 | G3: 10 | H3: 3 | J3: Сидоренко | K3: 5 | L3: 500
A4: Аброхин | B4: 1235 | C4: золото | D4: 486 проба 1 кг | E4: А-568 | F4: 24000 | G4: 10 | H4: 4 | J4: Вуниров | K4: 5 | L4: 500
A5: Авдохин | B5: 1236 | C5: серебро, алмазы | D5: 276 проба 500г | E5: А-569 | F5: 35000 | G5: 10 | H5: 2 | J5: Мкалов | K5: 5 | L5: 500
A6: Бабахин | B6: 1237 | C6: 7 машин | D6: ГАЗ-54 | E6: Б-768 | F6: 37000 | G6: 10 | H6: 3 | J6: Рудин | K6: 5
A7: Бабкин | B7: 1238 | C7: 2 самолета | D7: ТУ-134 | E7: Б-769 | F7: 600000 | G7: 10 | H7: 3 | J7: Вавакин | K7: 5
A8: Горохов | B8: 1239 | C8: дача, машина | D8: сруб, ВАЗ 2106 | E8: Г-456 | F8: 20000 | G8: 10 | H8: 2 | J8: Лужин | K8: 5
A9: Мухин | B9: 1300 | C9: бриллианты | D9: 3,5 карата | E9: М-975 | F9: 35000 | G9: 10 | H9: 1 | J9: Амкиров | K9: 5 | L9: 1000
A10: Молотов | B10: 1301 | C10: дача, золото | D10: 15*12,96, 500г | E10: М-976 | F10: 29000 | G10: 10 | H10: 3 | J10: Вавилов | K10: 5
A11: Молоков | B11: 1302 | C11: самолет | D11: ИЛ-76 | E11: М-977 | F11: 400000 | G11: 10 | H11: 2 | J11: Рыков | K11: 5
A12: Линоков | B12: 1303 | C12: перевозка | D12: 1т бананов | E12: Л-555 | F12: 4000 | G12: 10 | H12: 2 | J12: Уваров | K12: 5 | L12: 1550
A13: Общая сумма прибыли фирмы, $
A14: Сумма выплат страховым агентам, $
A15: Наибольшая сумма вклада, $
A16: Наименьшая сумма вклада, $
A17: Средняя выплата денег страховым агентам, $

Sheet расч зад 5 (hidden)
A1: Клиент (вкладчик) | B1: Кодовый номер вкладчика | C1: Наименование застрахованного товара | D1: Информация о вкладе | E1: Информация о вкладчике | F1: Стоимость страхового полиса, $ | G1: Ежемесячный взнос, % от вклада | H1: Срок страхования, мес | I1: Итоговая прибыль, $ | J1: Агент страхования | K1: Процент агента в месяц | L1: Дополнительные услуги, $ | M1: Итоговая Сумма, $ | N1: Выплата денег агентам, $
A2: Алексеев | B2: 1234 | C2: 2 машины | D2: BMW | E2: А-576 | F2: 30000 | G2: 10 | H2: 3 | I2: =H2*F2*G2/100 -> 9000 | J2: Сидоренко | K2: 5 | L2: 500 | M2: =I2+L2 -> 9500 | N2: =M2*0.05 -> 475
A3: Аброхин | B3: 1235 | C3: золото | D3: 486 проба 1 кг | E3: А-568 | F3: 24000 | G3: 10 | H3: 4 | I3: =H3*F3*G3/100 -> 9600 | J3: Вуниров | K3: 5 | L3: 500 | M3: =I3+L3 -> 10100 | N3: =M3*0.05 -> 505
A4: Авдохин | B4: 1236 | C4: серебро, алмазы | D4: 276 проба 500г | E4: А-569 | F4: 35000 | G4: 10 | H4: 2 | I4: 7000 | J4: Мкалов | K4: 5 | L4: 500 | M4: 7500 | N4: 375
A5: Бабахин | B5: 1237 | C5: 7 машин | D5: ГАЗ-54 | E5: Б-768 | F5: 37000 | G5: 10 | H5: 3 | I5: 11100 | J5: Рудин | K5: 5 | M5: 11100 | N5: 555
A6: Бабкин | B6: 1238 | C6: 2 самолета | D6: ТУ-134 | E6: Б-769 | F6: 600000 | G6: 10 | H6: 3 | I6: 180000 | J6: Вавакин | K6: 5 | M6: 180000 | N6: 9000
A7: Горохов | B7: 1239 | C7: дача, машина | D7: сруб, ВАЗ 2106 | E7: Г-456 | F7: 20000 | G7: 10 | H7: 2 | I7: 4000 | J7: Лужин | K7: 5 | M7: 4000 | N7: 200
A8: Мухин | B8: 1300 | C8: бриллианты | D8: 3,5 карата | E8: М-975 | F8: 35000 | G8: 10 | H8: 1 | I8: 3500 | J8: Амкиров | K8: 5 | L8: 1000 | M8: 4500 | N8: 225
A9: Молотов | B9: 1301 | C9: дача, золото | D9: 15*12,96, 500г | E9: М-976 | F9: 29000 | G9: 10 | H9: 3 | I9: 8700 | J9: Вавилов | K9: 5 | M9: 8700 | N9: 435
A10: Молоков | B10: 1302 | C10: самолет | D10: ИЛ-76 | E10: М-977 | F10: 400000 | G10: 10 | H10: 2 | I10: 80000 | J10: Рыков | K10: 5 | M10: 80000 | N10: 4000
A11: Линоков | B11: 1303 | C11: перевозка | D11: 1т бананов | E11: Л-555 | F11: 4000 | G11: 10 | H11: 2 | I11: 800 | J11: Уваров | K11: 5 | L11: 1550 | M11: 2350 | N11: 117.5
A13: Общая сумма прибыли фирмы, $ | C13: =SUM(M2:M11) -> 317750 | D13: =IF(C13='Задача 5'!C13,"верно","пересчитай") -> пересчитай | I13: Итоговая прибыль, $ | J13: Итоговая Сумма, $ | K13: Выплата денег агентам, $
A14: Сумма выплат страховым агентам, $ | C14: =SUM(N2:N11) -> 15887.5 | D14: =IF(C14='Задача 5'!C14,"верно","пересчитай") -> пересчитай | I14: =IF(I2='Задача 5'!I3,1,0) -> 0 | J14: =IF(M2='Задача 5'!M3,1,0) -> 0 | K14: =IF(N2='Задача 5'!N3,1,0) -> 0
A15: Наибольшая сумма вклада, $ | C15: =MAX(F2:F11) -> 600000 | D15: =IF(C15='Задача 5'!C15,"верно","пересчитай") -> пересчитай | I15: =IF(I3='Задача 5'!I4,1,0) -> 0 | J15: =IF(M3='Задача 5'!M4,1,0) -> 0 | K15: =IF(N3='Задача 5'!N4,1,0) -> 0
A16: Наименьшая сумма вклада, $ | C16: =MIN(F2:F11) -> 4000 | D16: =IF(C16='Задача 5'!C16,"верно","пересчитай") -> пересчитай | I16: =IF(I4='Задача 5'!I5,1,0) -> 0 | J16: =IF(M4='Задача 5'!M5,1,0) -> 0 | K16: =IF(N4='Задача 5'!N5,1,0) -> 0
A17: Средняя выплата денег страховым агентам, $ | C17: =AVERAGE(N2:N11) -> 1588.75 | D17: =IF(C17='Задача 5'!C17,"верно","пересчитай") -> пересчитай | I17: =IF(I5='Задача 5'!I6,1,0) -> 0 | J17: =IF(M5='Задача 5'!M6,1,0) -> 0 | K17: =IF(N5='Задача 5'!N6,1,0) -> 0
I18: =IF(I6='Задача 5'!I7,1,0) -> 0 | J18: =IF(M6='Задача 5'!M7,1,0) -> 0 | K18: =IF(N6='Задача 5'!N7,1,0) -> 0
I19: =IF(I7='Задача 5'!I8,1,0) -> 0 | J19: =IF(M7='Задача 5'!M8,1,0) -> 0 | K19: =IF(N7='Задача 5'!N8,1,0) -> 0
I20: =IF(I8='Задача 5'!I9,1,0) -> 0 | J20: =IF(M8='Задача 5'!M9,1,0) -> 0 | K20: =IF(N8='Задача 5'!N9,1,0) -> 0
I21: =IF(I9='Задача 5'!I10,1,0) -> 0 | J21: =IF(M9='Задача 5'!M10,1,0) -> 0 | K21: =IF(N9='Задача 5'!N10,1,0) -> 0
I22: =IF(I10='Задача 5'!I11,1,0) -> 0 | J22: =IF(M10='Задача 5'!M11,1,0) -> 0 | K22: =IF(N10='Задача 5'!N11,1,0) -> 0
I23: =IF(I11='Задача 5'!I12,1,0) -> 0 | J23: =IF(M11='Задача 5'!M12,1,0) -> 0 | K23: =IF(N11='Задача 5'!N12,1,0) -> 0
I24: =SUM(I14:I23) -> 0 | J24: =SUM(J14:J23) -> 0 | K24: =SUM(K14:K23) -> 0
I25: =IF(I24=10,"верно","пересчитай") -> пересчитай | J25: =IF(J24=10,"верно","пересчитай") -> пересчитай | K25: =IF(K24=10,"верно","пересчитай") -> пересчитай

Sheet резул5
A1: Итоговая прибыль, $ | B1: Итоговая Сумма, $ | C1: Выплата денег агентам, $
A2: =REPT('расч зад 5'!I25,1) -> пересчитай | B2: =REPT('расч зад 5'!J25,1) -> пересчитай | C2: =REPT('расч зад 5'!K25,1) -> пересчитай
A4: Общая сумма прибыли фирмы, $ | C4: =REPT('расч зад 5'!D13,1) -> пересчитай
A5: Сумма выплат страховым агентам, $ | C5: =REPT('расч зад 5'!D14,1) -> пересчитай
A6: Наибольшая сумма вклада, $ | C6: =REPT('расч зад 5'!D15,1) -> пересчитай
A7: Наименьшая сумма вклада, $ | C7: =REPT('расч зад 5'!D16,1) -> пересчитай
A8: Средняя выплата денег страховым агентам, $ | C8: =REPT('расч зад 5'!D17,1) -> пересчитай

Sheet Задача 6
A2: Порядковый номер ученика | B2: Фамилия | C2: Оценка по алгебре | D2: Оценка по геометрии | E2: Оценка по литературе | F2: Оценка по биологии | G2: Оценка по географии | H2: Оценка по физике | I2: Оценка по химии | J2: Оценка по английскому языку | K2: Оценка по ангийскому языку на компьютере | L2: Оценка по физкультуре | M2: Оценка по истории | N2: Оценка по духовной истории | O2: Оценка по экономике | P2: Оценка по мировой художественной культуре | Q2: Оценка по ОБЖ | R2: Средний балл ученика | S2: Округленный до целых средний балл | T2: Округленный до десятых средний балл
A3: 1 | B3: Абрамов | C3: 4 | D3: 5 | E3: 4 | F3: 5 | G3: 5 | H3: 5 | I3: 3 | J3: 4 | K3: 5 | L3: 5 | M3: 3 | N3: 4 | O3: 4 | P3: 4 | Q3: 5
A4: 2 | B4: Александров | C4: 4 | D4: 4 | E4: 3 | F4: 4 | G4: 5 | H4: 5 | I4: 5 | J4: 5 | K4: 5 | L4: 4 | M4: 4 | N4: 5 | O4: 5 | P4: 5 | Q4: 5
A5: 3 | B5: Алекссев | C5: 5 | D5: 5 | E5: 5 | F5: 5 | G5: 5 | H5: 5 | I5: 5 | J5: 5 | K5: 5 | L5: 5 | M5: 5 | N5: 5 | O5: 5 | P5: 5 | Q5: 5
A6: 4 | B6: Борисов | C6: 4 | D6: 4 | E6: 5 | F6: 5 | G6: 4 | H6: 5 | I6: 4 | J6: 4 | K6: 5 | L6: 4 | M6: 4 | N6: 4 | O6: 4 | P6: 4 | Q6: 5
A7: 5 | B7: Гаврилов | C7: 4 | D7: 4 | E7: 3 | F7: 4 | G7: 5 | H7: 3 | I7: 3 | J7: 3 | K7: 4 | L7: 4 | M7: 4 | N7: 4 | O7: 4 | P7: 4 | Q7: 5
A8: 6 | B8: Давыдов | C8: 4 | D8: 4 | E8: 3 | F8: 4 | G8: 5 | H8: 3 | I8: 3 | J8: 4 | K8: 5 | L8: 5 | M8: 3 | N8: 4 | O8: 4 | P8: 3 | Q8: 4
A9: 7 | B9: Зубков | C9: 4 | D9: 5 | E9: 3 | F9: 4 | G9: 5 | H9: 4 | I9: 4 | J9: 5 | K9: 5 | L9: 4 | M9: 4 | N9: 4 | O9: 4 | P9: 5 | Q9: 4
A10: 8 | B10: Карасев | C10: 4 | D10: 4 | E10: 4 | F10: 4 | G10: 4 | H10: 4 | I10: 4 | J10: 5 | K10: 5 | L10: 4 | M10: 3 | N10: 3 | O10: 4 | P10: 4 | Q10: 5
A11: 9 | B11: Кораблев | C11: 4 | D11: 4 | E11: 3 | F11: 3 | G11: 4 | H11: 4 | I11: 4 | J11: 5 | K11: 5 | L11: 3 | M11: 4 | N11: 4 | O11: 4 | P11: 4 | Q11: 5
A12: 10 | B12: Кудряшов | C12: 3 | D12: 3 | E12: 4 | F12: 3 | G12: 3 | H12: 2 | I12: 3 | J12: 5 | K12: 3 | L12: 3 | M12: 3 | N12: 4 | O12: 5 | P12: 3 | Q12: 3
A13: 11 | B13: Лукичев | C13: 4 | D13: 4 | E13: 3 | F13: 4 | G13: 5 | H13: 4 | I13: 4 | J13: 4 | K13: 4 | L13: 4 | M13: 3 | N13: 4 | O13: 4 | P13: 4 | Q13: 4
A14: 12 | B14: Макаревич | C14: 3 | D14: 4 | E14: 4 | F14: 4 | G14: 4 | H14: 3 | I14: 3 | J14: 5 | K14: 5 | L14: 4 | M14: 3 | N14: 4 | O14: 5 | P14: 5 | Q14: 5
A15: 13 | B15: Макарова | C15: 3 | D15: 3 | E15: 3 | F15: 4 | G15: 5 | H15: 3 | I15: 4 | J15: 4 | K15: 4 | L15: 5 | M15: 4 | N15: 5 | O15: 5 | P15: 4 | Q15: 5
A16: Средние баллы по предмету | R16: Средний балл учащихся класса
A17: Кол-во "5" по предмету | R17: Кол-во учащихся, которые имеют средний балл "5"
A18: Кол-во "4" по предмету | R18: Кол-во учащихся, которые имеют средний балл "4"
A19: Кол-во "3" по предмету | R19: Кол-во учащихся, которые имеют средний балл "3"

Sheet расч зад6 (hidden)
A1: Порядковый номер ученика | B1: Фамилия | C1: Оценка по алгебре | D1: Оценка по геометрии | E1: Оценка по литературе | F1: Оценка по биологии | G1: Оценка по географии | H1: Оценка по физике | I1: Оценка по химии | J1: Оценка по английскому языку | K1: Оценка по ангийскому языку на компьютере | L1: Оценка по физкультуре | M1: Оценка по истории | N1: Оценка по духовной истории | O1: Оценка по экономике | P1: Оценка по мировой художественной культуре | Q1: Оценка по ОБЖ | R1: Средний балл ученика | S1: Округленный до целых средний балл | T1: Округленный до десятых средний балл | V1: Средний балл ученика | W1: Округленный до целых средний балл | X1: Округленный до десятых средний балл
A2: 1 | B2: Абрамов | C2: 4 | D2: 5 | E2: 4 | F2: 5 | G2: 5 | H2: 5 | I2: 3 | J2: 4 | K2: 5 | L2: 5 | M2: 3 | N2: 4 | O2: 4 | P2: 4 | Q2: 5 | R2: =AVERAGE(C2:Q2) -> 4.333333333 | S2: =ROUND(R2,0) -> 4 | T2: =ROUND(R2,1) -> 4.3 | V2: =IF(R2='Задача 6'!R3,1,0) -> 0 | W2: =IF(S2='Задача 6'!S3,1,0) -> 0 | X2: =IF(T2='Задача 6'!T3,1,0) -> 0
A3: 2 | B3: Александров | C3: 4 | D3: 4 | E3: 3 | F3: 4 | G3: 5 | H3: 5 | I3: 5 | J3: 5 | K3: 5 | L3: 4 | M3: 4 | N3: 5 | O3: 5 | P3: 5 | Q3: 5 | R3: =AVERAGE(C3:Q3) -> 4.533333333 | S3: =ROUND(R3,0) -> 5 | T3: =ROUND(R3,1) -> 4.5 | V3: =IF(R3='Задача 6'!R4,1,0) -> 0 | W3: =IF(S3='Задача 6'!S4,1,0) -> 0 | X3: =IF(T3='Задача 6'!T4,1,0) -> 0
A4: 3 | B4: Алекссев | C4: 5 | D4: 5 | E4: 5 | F4: 5 | G4: 5 | H4: 5 | I4: 5 | J4: 5 | K4: 5 | L4: 5 | M4: 5 | N4: 5 | O4: 5 | P4: 5 | Q4: 5 | R4: 5 | S4: 5 | T4: 5 | V4: =IF(R4='Задача 6'!R5,1,0) -> 0 | W4: =IF(S4='Задача 6'!S5,1,0) -> 0 | X4: =IF(T4='Задача 6'!T5,1,0) -> 0
A5: 4 | B5: Борисов | C5: 4 | D5: 4 | E5: 5 | F5: 5 | G5: 4 | H5: 5 | I5: 4 | J5: 4 | K5: 5 | L5: 4 | M5: 4 | N5: 4 | O5: 4 | P5: 4 | Q5: 5 | R5: 4.333333333 | S5: 4 | T5: 4.3 | V5: =IF(R5='Задача 6'!R6,1,0) -> 0 | W5: =IF(S5='Задача 6'!S6,1,0) -> 0 | X5: =IF(T5='Задача 6'!T6,1,0) -> 0
A6: 5 | B6: Гаврилов | C6: 4 | D6: 4 | E6: 3 | F6: 4 | G6: 5 | H6: 3 | I6: 3 | J6: 3 | K6: 4 | L6: 4 | M6: 4 | N6: 4 | O6: 4 | P6: 4 | Q6: 5 | R6: 3.866666667 | S6: 4 | T6: 3.9 | V6: =IF(R6='Задача 6'!R7,1,0) -> 0 | W6: =IF(S6='Задача 6'!S7,1,0) -> 0 | X6: =IF(T6='Задача 6'!T7,1,0) -> 0
A7: 6 | B7: Давыдов | C7: 4 | D7: 4 | E7: 3 | F7: 4 | G7: 5 | H7: 3 | I7: 3 | J7: 4 | K7: 5 | L7: 5 | M7: 3 | N7: 4 | O7: 4 | P7: 3 | Q7: 4 | R7: 3.866666667 | S7: 4 | T7: 3.9 | V7: =IF(R7='Задача 6'!R8,1,0) -> 0 | W7: =IF(S7='Задача 6'!S8,1,0) -> 0 | X7: =IF(T7='Задача 6'!T8,1,0) -> 0
A8: 7 | B8: Зубков | C8: 4 | D8: 5 | E8: 3 | F8: 4 | G8: 5 | H8: 4 | I8: 4 | J8: 5 | K8: 5 | L8: 4 | M8: 4 | N8: 4 | O8: 4 | P8: 5 | Q8: 4 | R8: 4.266666667 | S8: 4 | T8: 4.3 | V8: =IF(R8='Задача 6'!R9,1,0) -> 0 | W8: =IF(S8='Задача 6'!S9,1,0) -> 0 | X8: =IF(T8='Задача 6'!T9,1,0) -> 0
A9: 8 | B9: Карасев | C9: 4 | D9: 4 | E9: 4 | F9: 4 | G9: 4 | H9: 4 | I9: 4 | J9: 5 | K9: 5 | L9: 4 | M9: 3 | N9: 3 | O9: 4 | P9: 4 | Q9: 5 | R9: 4.066666667 | S9: 4 | T9: 4.1 | V9: =IF(R9='Задача 6'!R10,1,0) -> 0 | W9: =IF(S9='Задача 6'!S10,1,0) -> 0 | X9: =IF(T9='Задача 6'!T10,1,0) -> 0
A10: 9 | B10: Кораблев | C10: 4 | D10: 4 | E10: 3 | F10: 3 | G10: 4 | H10: 4 | I10: 4 | J10: 5 | K10: 5 | L10: 3 | M10: 4 | N10: 4 | O10: 4 | P10: 4 | Q10: 5 | R10: 4 | S10: 4 | T10: 4 | V10: =IF(R10='Задача 6'!R11,1,0) -> 0 | W10: =IF(S10='Задача 6'!S11,1,0) -> 0 | X10: =IF(T10='Задача 6'!T11,1,0) -> 0
A11: 10 | B11: Кудряшов | C11: 3 | D11: 3 | E11: 4 | F11: 3 | G11: 3 | H11: 2 | I11: 3 | J11: 5 | K11: 3 | L11: 3 | M11: 3 | N11: 4 | O11: 5 | P11: 3 | Q11: 3 | R11: 3.333333333 | S11: 3 | T11: 3.3 | V11: =IF(R11='Задача 6'!R12,1,0) -> 0 | W11: =IF(S11='Задача 6'!S12,1,0) -> 0 | X11: =IF(T11='Задача 6'!T12,1,0) -> 0
A12: 11 | B12: Лукичев | C12: 4 | D12: 4 | E12: 3 | F12: 4 | G12: 5 | H12: 4 | I12: 4 | J12: 4 | K12: 4 | L12: 4 | M12: 3 | N12: 4 | O12: 4 | P12: 4 | Q12: 4 | R12: 3.933333333 | S12: 4 | T12: 3.9 | V12: =IF(R12='Задача 6'!R13,1,0) -> 0 | W12: =IF(S12='Задача 6'!S13,1,0) -> 0 | X12: =IF(T12='Задача 6'!T13,1,0) -> 0
A13: 12 | B13: Макаревич | C13: 3 | D13: 4 | E13: 4 | F13: 4 | G13: 4 | H13: 3 | I13: 3 | J13: 5 | K13: 5 | L13: 4 | M13: 3 | N13: 4 | O13: 5 | P13: 5 | Q13: 5 | R13: 4.066666667 | S13: 4 | T13: 4.1 | V13: =IF(R13='Задача 6'!R14,1,0) -> 0 | W13: =IF(S13='Задача 6'!S14,1,0) -> 0 | X13: =IF(T13='Задача 6'!T14,1,0) -> 0
A14: 13 | B14: Макарова | C14: 3 | D14: 3 | E14: 3 | F14: 4 | G14: 5 | H14: 3 | I14: 4 | J14: 4 | K14: 4 | L14: 5 | M14: 4 | N14: 5 | O14: 5 | P14: 4 | Q14: 5 | R14: 4.066666667 | S14: 4 | T14: 4.1 | V14: =IF(R14='Задача 6'!R15,1,0) -> 0 | W14: =IF(S14='Задача 6'!S15,1,0) -> 0 | X14: =IF(T14='Задача 6'!T15,1,0) -> 0
A15: Средние баллы по предмету | C15: =AVERAGE(C2:C14) -> 3.846153846 | D15: =AVERAGE(D2:D14) -> 4.076923077 | E15: 3.615384615 | F15: 4.076923077 | G15: 4.538461538 | H15: 3.846153846 | I15: 3.769230769 | J15: 4.461538462 | K15: 4.615384615 | L15: 4.153846154 | M15: 3.615384615 | N15: 4.153846154 | O15: 4.384615385 | P15: 4.153846154 | Q15: 4.615384615 | R15: Средний балл учащихся класса | T15: =AVERAGE(S2:S14) -> 4.076923077 | V15: =SUM(V2:V14) -> 0 | W15: =SUM(W2:W14) -> 0 | X15: =SUM(X2:X14) -> 0
A16: Кол-во "5" по предмету | C16: =COUNTIF(C2:C14,5) -> 1 | D16: =COUNTIF(D2:D14,5) -> 3 | E16: 2 | F16: 3 | G16: 8 | H16: 4 | I16: 2 | J16: 7 | K16: 9 | L16: 4 | M16: 1 | N16: 3 | O16: 5 | P16: 4 | Q16: 9 | R16: Кол-во учащихся, которые имеют средний балл "5" | T16: =COUNTIF(S2:S14,5) -> 2 | V16: =IF(V15=13,"верно","пересчитай") -> пересчитай | W16: =IF(W15=13,"верно","пересчитай") -> пересчитай | X16: =IF(X15=13,"верно","пересчитай") -> пересчитай
A17: Кол-во "4" по предмету | C17: =COUNTIF(C2:C14,4) -> 9 | D17: =COUNTIF(D2:D14,4) -> 8 | E17: 4 | F17: 8 | G17: 4 | H17: 4 | I17: 6 | J17: 5 | K17: 3 | L17: 7 | M17: 6 | N17: 9 | O17: 8 | P17: 7 | Q17: 3 | R17: Кол-во учащихся, которые имеют средний балл "4" | T17: =COUNTIF(S2:S14,4) -> 10
A18: Кол-во "3" по предмету | C18: =COUNTIF(C2:C14,3) -> 3 | D18: =COUNTIF(D2:D14,3) -> 2 | E18: 7 | F18: 2 | G18: 1 | H18: 4 | I18: 5 | J18: 1 | K18: 1 | L18: 2 | M18: 6 | N18: 1 | O18: 0 | P18: 2 | Q18: 1 | R18: Кол-во учащихся, которые имеют средний балл "3" | T18: =COUNTIF(S2:S14,3) -> 1
V19: Средний балл учащихся класса | X19: =IF(T15='Задача 6'!T16,"верно","пересчитай") -> пересчитай
A20: Средние баллы по предмету | C20: =IF(C15='Задача 6'!C16,1,0) -> 0 | D20: =IF(D15='Задача 6'!D16,1,0) -> 0 | E20: =IF(E15='Задача 6'!E16,1,0) -> 0 | F20: =IF(F15='Задача 6'!F16,1,0) -> 0 | G20: =IF(G15='Задача 6'!G16,1,0) -> 0 | H20: =IF(H15='Задача 6'!H16,1,0) -> 0 | I20: =IF(I15='Задача 6'!I16,1,0) -> 0 | J20: =IF(J15='Задача 6'!J16,1,0) -> 0 | K20: =IF(K15='Задача 6'!K16,1,0) -> 0 | L20: =IF(L15='Задача 6'!L16,1,0) -> 0 | M20: =IF(M15='Задача 6'!M16,1,0) -> 0 | N20: =IF(N15='Задача 6'!N16,1,0) -> 0 | O20: =IF(O15='Задача 6'!O16,1,0) -> 0 | P20: =IF(P15='Задача 6'!P16,1,0) -> 0 | Q20: =IF(Q15='Задача 6'!Q16,1,0) -> 0 | R20: =SUM(C20:Q20) -> 0 | S20: =IF(R20=15,"верно","пересчитай") -> пересчитай | V20: Кол-во учащихся, которые имеют средний балл "5" | X20: =IF(T16='Задача 6'!T17,"верно","пересчитай") -> пересчитай
A21: Кол-во "5" по предмету | C21: =IF(C16='Задача 6'!C17,1,0) -> 0 | D21: =IF(D16='Задача 6'!D17,1,0) -> 0 | E21: =IF(E16='Задача 6'!E17,1,0) -> 0 | F21: =IF(F16='Задача 6'!F17,1,0) -> 0 | G21: =IF(G16='Задача 6'!G17,1,0) -> 0 | H21: =IF(H16='Задача 6'!H17,1,0) -> 0 | I21: =IF(I16='Задача 6'!I17,1,0) -> 0 | J21: =IF(J16='Задача 6'!J17,1,0) -> 0 | K21: =IF(K16='Задача 6'!K17,1,0) -> 0 | L21: =IF(L16='Задача 6'!L17,1,0) -> 0 | M21: =IF(M16='Задача 6'!M17,1,0) -> 0 | N21: =IF(N16='Задача 6'!N17,1,0) -> 0 | O21: =IF(O16='Задача 6'!O17,1,0) -> 0 | P21: =IF(P16='Задача 6'!P17,1,0) -> 0 | Q21: =IF(Q16='Задача 6'!Q17,1,0) -> 0 | R21: =SUM(C21:Q21) -> 0 | S21: =IF(R21=15,"верно","пересчитай") -> пересчитай | V21: Кол-во учащихся, которые имеют средний балл "4" | X21: =IF(T17='Задача 6'!T18,"верно","пересчитай") -> пересчитай
A22: Кол-во "4" по предмету | C22: =IF(C17='Задача 6'!C18,1,0) -> 0 | D22: =IF(D17='Задача 6'!D18,1,0) -> 0 | E22: =IF(E17='Задача 6'!E18,1,0) -> 0 | F22: =IF(F17='Задача 6'!F18,1,0) -> 0 | G22: =IF(G17='Задача 6'!G18,1,0) -> 0 | H22: =IF(H17='Задача 6'!H18,1,0) -> 0 | I22: =IF(I17='Задача 6'!I18,1,0) -> 0 | J22: =IF(J17='Задача 6'!J18,1,0) -> 0 | K22: =IF(K17='Задача 6'!K18,1,0) -> 0 | L22: =IF(L17='Задача 6'!L18,1,0) -> 0 | M22: =IF(M17='Задача 6'!M18,1,0) -> 0 | N22: =IF(N17='Задача 6'!N18,1,0) -> 0 | O22: =IF(O17='Задача 6'!O18,1,0) -> 0 | P22: =IF(P17='Задача 6'!P18,1,0) -> 0 | Q22: =IF(Q17='Задача 6'!Q18,1,0) -> 0 | R22: =SUM(C22:Q22) -> 0 | S22: =IF(R22=15,"верно","пересчитай") -> пересчитай | V22: Кол-во учащихся, которые имеют средний балл "3" | X22: =IF(T18='Задача 6'!T19,"верно","пересчитай") -> пересчитай
A23: Кол-во "3" по предмету | C23: =IF(C18='Задача 6'!C19,1,0) -> 0 | D23: =IF(D18='Задача 6'!D19,1,0) -> 0 | E23: =IF(E18='Задача 6'!E19,1,0) -> 0 | F23: =IF(F18='Задача 6'!F19,1,0) -> 0 | G23: =IF(G18='Задача 6'!G19,1,0) -> 0 | H23: =IF(H18='Задача 6'!H19,1,0) -> 0 | I23: =IF(I18='Задача 6'!I19,1,0) -> 0 | J23: =IF(J18='Задача 6'!J19,1,0) -> 0 | K23: =IF(K18='Задача 6'!K19,1,0) -> 0 | L23: =IF(L18='Задача 6'!L19,1,0) -> 0 | M23: =IF(M18='Задача 6'!M19,1,0) -> 0 | N23: =IF(N18='Задача 6'!N19,1,0) -> 0 | O23: =IF(O18='Задача 6'!O19,1,0) -> 1 | P23: =IF(P18='Задача 6'!P19,1,0) -> 0 | Q23: =IF(Q18='Задача 6'!Q19,1,0) -> 0 | R23: =SUM(C23:Q23) -> 1 | S23: =IF(R23=15,"верно","пересчитай") -> пересчитай

Sheet резул6
A1: Средний балл ученика | B1: Округленный до целых средний балл | C1: Округленный до десятых средний балл
A2: =REPT('расч зад6'!V16,1) -> пересчитай | B2: =REPT('расч зад6'!W16,1) -> пересчитай | C2: =REPT('расч зад6'!X16,1) -> пересчитай
A4: Средние баллы по предмету | C4: =REPT('расч зад6'!S20,1) -> пересчитай | E4: Средний балл учащихся класса | G4: =REPT('расч зад6'!X19,1) -> пересчитай
A5: Кол-во "5" по предмету | C5: =REPT('расч зад6'!S21,1) -> пересчитай | E5: Кол-во учащихся, которые имеют средний балл "5" | G5: =REPT('расч зад6'!X20,1) -> пересчитай
A6: Кол-во "4" по предмету | C6: =REPT('расч зад6'!S22,1) -> пересчитай | E6: Кол-во учащихся, которые имеют средний балл "4" | G6: =REPT('расч зад6'!X21,1) -> пересчитай
A7: Кол-во "3" по предмету | C7: =REPT('расч зад6'!S23,1) -> пересчитай | E7: Кол-во учащихся, которые имеют средний балл "3" | G7: =REPT('расч зад6'!X22,1) -> пересчитай

Sheet Задача 7
A2: Номер | B2: Тип | C2: Наименование | D2: Регистрационный номер | E2: Год спуска на воду | F2: Водоизмещение, т | G2: Запас топлива, масел, т | H2: Кол-во членов экипажа | I2: Автономность, тыс.миль | J2: Кол-во пассажиров | K2: Фамилия капитана | L2: Время рейса, мес | M2: Годовая эксплуатация судна, % | N2: Годовая эксплуатация судна, % (округление до целого)
A3: 1 | B3: пассажирское | C3: Константин Симонов | D3: М-37655 | E3: 1982 | F3: 9491 | G3: Т:637 М:63 | H3: 169 | I3: 3500 | J3: 663 | K3: Позднеев | L3: 1
A4: 2 | B4: пассажирское | C4: Ильич | D4: М-40175 | E4: 1973 | F4: 8613 | G4: Т:764 М:50 | H4: 150 | I4: 500 | J4: 706 | K4: Басилов | L4: 0.5
A5: 3 | B5: пассажирское | C5: Анна Каренина | D5: ДРИ-12392 | E5: 1980 | F5: 12138 | G5: Т:465 М:70 | H5: 215 | I5: 750 | J5: 1243 | K5: Трофимов | L5: 0.8
A6: 4 | B6: навалочное | C6: Ленинск | D6: М-41418 | E6: 1975 | F6: 42580 | G6: Т:1482 М:46 | H6: 40 | I6: 16000 | K6: Поляк | L6: 2
A7: 5 | B7: навалочное | C7: Горловка | D7: М-41417 | E7: 1976 | F7: 4258 | G7: Т:1482 М:46 | H7: 40 | I7: 16000 | K7: Величко | L7: 4
A8: 6 | B8: навалочное | C8: Капитан Бехтер | D8: М-42353 | E8: 1985 | F8: 47028 | G8: Т:2598 М:174 | H8: 31 | I8: 16000 | K8: Кораблев | L8: 3.4
A9: 7 | B9: контейнер | C9: Сестрорецк | D9: М-29571 | E9: 1972 | F9: 10020 | G9: Т:599 М:20 | H9: 31 | I9: 7300 | K9: Иванов | L9: 2.5
A10: 8 | B10: контейнер | C10: Алексей Прокофьев | D10: М-29572 | E10: 1975 | F10: 11663 | G10: Т:599 М:20 | H10: 37 | I10: 10000 | K10: Кочикян | L10: 6
A11: Самое современное судно
A12: Самое старое судно
A13: Количество членов экипажей всех суднов
A14: Кол-во пассажиров, которые могут совершить круиз
A15: Максимальная длительность рейса, мес
A16: Наименьшее водоизмещение, т
A17: Наибольшее водоизмещение, т

Sheet расч зад7 (hidden)
A1: Номер | B1: Тип | C1: Наименование | D1: Регистрационный номер | E1: Год спуска на воду | F1: Водоизмещение, т | G1: Запас топлива, масел, т | H1: Кол-во членов экипажа | I1: Автономность, тыс.миль | J1: Кол-во пассажиров | K1: Фамилия капитана | L1: Время рейса, мес | M1: Годовая эксплуатация судна, % | N1: Годовая эксплуатация судна, % (округление до целого) | P1: Годовая эксплуатация судна, % | Q1: Годовая эксплуатация судна, % (округление до целого)
A2: 1 | B2: пассажирское | C2: Константин Симонов | D2: М-37655 | E2: 1982 | F2: 9491 | G2: Т:637 М:63 | H2: 169 | I2: 3500 | J2: 663 | K2: Позднеев | L2: 1 | M2: =L2/12*100 -> 8.333333333 | N2: =ROUND(M2,0) -> 8 | P2: =IF(M2='Задача 7'!M3,1,0) -> 0 | Q2: =IF(N2='Задача 7'!N3,1,0) -> 0
A3: 2 | B3: пассажирское | C3: Ильич | D3: М-40175 | E3: 1973 | F3: 8613 | G3: Т:764 М:50 | H3: 150 | I3: 500 | J3: 706 | K3: Басилов | L3: 0.5 | M3: =L3/12*100 -> 4.166666667 | N3: =ROUND(M3,0) -> 4 | P3: =IF(M3='Задача 7'!M4,1,0) -> 0 | Q3: =IF(N3='Задача 7'!N4,1,0) -> 0
A4: 3 | B4: пассажирское | C4: Анна Каренина | D4: ДРИ-12392 | E4: 1980 | F4: 12138 | G4: Т:465 М:70 | H4: 215 | I4: 750 | J4: 1243 | K4: Трофимов | L4: 0.8 | M4: 6.666666667 | N4: 7 | P4: =IF(M4='Задача 7'!M5,1,0) -> 0 | Q4: =IF(N4='Задача 7'!N5,1,0) -> 0
A5: 4 | B5: навалочное | C5: Ленинск | D5: М-41418 | E5: 1975 | F5: 42580 | G5: Т:1482 М:46 | H5: 40 | I5: 16000 | K5: Поляк | L5: 2 | M5: 16.66666667 | N5: 17 | P5: =IF(M5='Задача 7'!M6,1,0) -> 0 | Q5: =IF(N5='Задача 7'!N6,1,0) -> 0
A6: 5 | B6: навалочное | C6: Горловка | D6: М-41417 | E6: 1976 | F6: 4258 | G6: Т:1482 М:46 | H6: 40 | I6: 16000 | K6: Величко | L6: 4 | M6: 33.33333333 | N6: 33 | P6: =IF(M6='Задача 7'!M7,1,0) -> 0 | Q6: =IF(N6='Задача 7'!N7,1,0) -> 0
A7: 6 | B7: навалочное | C7: Капитан Бехтер | D7: М-42353 | E7: 1985 | F7: 47028 | G7: Т:2598 М:174 | H7: 31 | I7: 16000 | K7: Кораблев | L7: 3.4 | M7: 28.33333333 | N7: 28 | P7: =IF(M7='Задача 7'!M8,1,0) -> 0 | Q7: =IF(N7='Задача 7'!N8,1,0) -> 0
A8: 7 | B8: контейнер | C8: Сестрорецк | D8: М-29571 | E8: 1972 | F8: 10020 | G8: Т:599 М:20 | H8: 31 | I8: 7300 | K8: Иванов | L8: 2.5 | M8: 20.83333333 | N8: 21 | P8: =IF(M8='Задача 7'!M9,1,0) -> 0 | Q8: =IF(N8='Задача 7'!N9,1,0) -> 0
A9: 8 | B9: контейнер | C9: Алексей Прокофьев | D9: М-29572 | E9: 1975 | F9: 11663 | G9: Т:599 М:20 | H9: 37 | I9: 10000 | K9: Кочикян | L9: 6 | M9: 50 | N9: 50 | P9: =IF(M9='Задача 7'!M10,1,0) -> 0 | Q9: =IF(N9='Задача 7'!N10,1,0) -> 0
A10: Самое современное судно | D10: =MAX(E2:E9) -> 1985 | E10: =IF(D10='Задача 7'!D11,"верно","пересчитай") -> пересчитай | P10: =SUM(P2:P9) -> 0 | Q10: =SUM(Q2:Q9) -> 0
A11: Самое старое судно | D11: =MIN(E2:E9) -> 1972 | E11: =IF(D11='Задача 7'!D12,"верно","пересчитай") -> пересчитай | P11: =IF(P10=8,"верно","пересчитай") -> пересчитай | Q11: =IF(Q10=8,"верно","пересчитай") -> пересчитай
A12: Количество членов экипажей всех суднов | D12: =SUM(H2:H9) -> 713 | E12: =IF(D12='Задача 7'!D13,"верно","пересчитай") -> пересчитай
A13: Кол-во пассажиров, которые могут совершить круиз | D13: =SUM(J2:J9) -> 2612 | E13: =IF(D13='Задача 7'!D14,"верно","пересчитай") -> пересчитай
A14: Максимальная длительность рейса, мес | D14: =MAX(L2:L9) -> 6 | E14: =IF(D14='Задача 7'!D15,"верно","пересчитай") -> пересчитай
A15: Наименьшее водоизмещение, т | D15: =MAX(F2:F9) -> 47028 | E15: =IF(D15='Задача 7'!D16,"верно","пересчитай") -> пересчитай
A16: Наибольшее водоизмещение, т | D16: =MIN(F2:F9) -> 4258 | E16: =IF(D16='Задача 7'!D17,"верно","пересчитай") -> пересчитай

Sheet резул7
A1: Годовая эксплуатация судна, % | B1: Годовая эксплуатация судна, % (округление до целого)
A2: =REPT('расч зад7'!P11,1) -> пересчитай | B2: =REPT('расч зад7'!Q11,1) -> пересчитай
A4: Самое современное судно | D4: =REPT('расч зад7'!E10,1) -> пересчитай
A5: Самое старое судно | D5: =REPT('расч зад7'!E11,1) -> пересчитай
A6: Количество членов экипажей всех суднов | D6: =REPT('расч зад7'!E12,1) -> пересчитай
A7: Кол-во пассажиров, которые могут совершить круиз | D7: =REPT('расч зад7'!E13,1) -> пересчитай
A8: Максимальная длительность рейса, мес | D8: =REPT('расч зад7'!E14,1) -> пересчитай
A9: Наименьшее водоизмещение, т | D9: =REPT('расч зад7'!E15,1) -> пересчитай
A10: Наибольшее водоизмещение, т | D10: =REPT('расч зад7'!E16,1) -> пересчитай

Sheet Задача 8
A2: район | B2: стоимость 1 кв.м.,$ | C2: площадь квартиры, кв.м. | D2: коэффициент престижности | E2: стоимость квартиры,$ | F2: Налог на приватизацию,$ | G2: плата агенству по продаже недвжимости,$ | H2: стоимость перевода и регистрации недвижимости,$ | I2: общая стоимость квартры и услуг,$ | J2: общая стоимость квартиры и услуг, руб
A3: Кировский | B3: 700 | C3: 40 | D3: 1
A4: Ленинский | B4: 650 | C4: 55 | D4: 0.6
A5: Московский | B5: 1000 | C5: 35 | D5: 2.5
A6: Фрунзенский | B6: 900 | C6: 60 | D6: 1.8
A7: Петроградский | B7: 1000 | C7: 67 | D7: 5.4
A8: Василеостровский | B8: 600 | C8: 31 | D8: 3.2
A9: Курс в долларах: 1$= | H9: минимальная стоимость квартиры, руб
H10: минимальная стоимость квартиры, $
H11: максимальная стоимость квартиры, $
H12: максимальная стоимость квартиры, руб
H13: разница минимальной и максимальной стоимости квартир,$

Sheet рас зад8 (hidden)
A1: район | B1: стоимость 1 кв.м.,$ | C1: площадь квартиры, кв.м. | D1: коэффициент престижности | E1: стоимость квартиры,$ | F1: Налог на приватизацию,$ | G1: плата агенству по продаже недвжимости,$ | H1: стоимость перевода и регистрации недвижимости,$ | I1: общая стоимость квартры и услуг,$ | J1: общая стоимость квартиры и услуг, руб | L1: стоимость квартиры,$ | M1: Налог на приватизацию,$ | N1: плата агенству по продаже недвжимости,$ | O1: стоимость перевода и регистрации недвижимости,$ | P1: общая стоимость квартры и услуг,$ | Q1: общая стоимость квартиры и услуг, руб
A2: Кировский | B2: 700 | C2: 40 | D2: 1 | E2: =B2*C2*D2 -> 28000 | F2: =0.01*E2 -> 280 | G2: =0.05*E2 -> 1400 | H2: =0.05*E2 -> 1400 | I2: =SUM(E2:H2) -> 31080 | J2: =I2*$B$8 ->  | L2: =IF(E2='Задача 8'!E3,1,0) -> 0 | M2: =IF(F2='Задача 8'!F3,1,0) -> 0 | N2: =IF(G2='Задача 8'!G3,1,0) -> 0 | O2: =IF(H2='Задача 8'!H3,1,0) -> 0 | P2: =IF(I2='Задача 8'!I3,1,0) -> 0 | Q2: =IF(J2='Задача 8'!J3,1,0) -> 
A3: Ленинский | B3: 650 | C3: 55 | D3: 0.6 | E3: 21450 | F3: 214.5 | G3: 1072.5 | H3: 1072.5 | I3: 23809.5 | L3: =IF(E3='Задача 8'!E4,1,0) -> 0 | M3: =IF(F3='Задача 8'!F4,1,0) -> 0 | N3: =IF(G3='Задача 8'!G4,1,0) -> 0 | O3: =IF(H3='Задача 8'!H4,1,0) -> 0 | P3: =IF(I3='Задача 8'!I4,1,0) -> 0 | Q3: =IF(J3='Задача 8'!J4,1,0) -> 
A4: Московский | B4: 1000 | C4: 35 | D4: 2.5 | E4: 87500 | F4: 875 | G4: 4375 | H4: 4375 | I4: 97125 | L4: =IF(E4='Задача 8'!E5,1,0) -> 0 | M4: =IF(F4='Задача 8'!F5,1,0) -> 0 | N4: =IF(G4='Задача 8'!G5,1,0) -> 0 | O4: =IF(H4='Задача 8'!H5,1,0) -> 0 | P4: =IF(I4='Задача 8'!I5,1,0) -> 0 | Q4: =IF(J4='Задача 8'!J5,1,0) -> 
A5: Фрунзенский | B5: 900 | C5: 60 | D5: 1.8 | E5: 97200 | F5: 972 | G5: 4860 | H5: 4860 | I5: 107892 | L5: =IF(E5='Задача 8'!E6,1,0) -> 0 | M5: =IF(F5='Задача 8'!F6,1,0) -> 0 | N5: =IF(G5='Задача 8'!G6,1,0) -> 0 | O5: =IF(H5='Задача 8'!H6,1,0) -> 0 | P5: =IF(I5='Задача 8'!I6,1,0) -> 0 | Q5: =IF(J5='Задача 8'!J6,1,0) -> 
A6: Петроградский | B6: 1000 | C6: 67 | D6: 5.4 | E6: 361800 | F6: 3618 | G6: 18090 | H6: 18090 | I6: 401598 | L6: =IF(E6='Задача 8'!E7,1,0) -> 0 | M6: =IF(F6='Задача 8'!F7,1,0) -> 0 | N6: =IF(G6='Задача 8'!G7,1,0) -> 0 | O6: =IF(H6='Задача 8'!H7,1,0) -> 0 | P6: =IF(I6='Задача 8'!I7,1,0) -> 0 | Q6: =IF(J6='Задача 8'!J7,1,0) -> 
A7: Василеостровский | B7: 600 | C7: 31 | D7: 3.2 | E7: 59520 | F7: 595.2 | G7: 2976 | H7: 2976 | I7: 66067.2 | L7: =IF(E7='Задача 8'!E8,1,0) -> 0 | M7: =IF(F7='Задача 8'!F8,1,0) -> 0 | N7: =IF(G7='Задача 8'!G8,1,0) -> 0 | O7: =IF(H7='Задача 8'!H8,1,0) -> 0 | P7: =IF(I7='Задача 8'!I8,1,0) -> 0 | Q7: =IF(J7='Задача 8'!J8,1,0) -> 
A8: Курс в долларах: 1$= | B8: =REPT('Задача 8'!B9,1) ->  | H8: минимальная стоимость квартиры, руб | J8: =MIN(J2:J7) ->  | K8: =IF(J8='Задача 8'!J9,"верно","пересчитай") ->  | L8: =SUM(L2:L7) -> 0 | M8: 0 | N8: 0 | O8: 0 | P8: 0
H9: минимальная стоимость квартиры, $ | J9: =MIN(I2:I7) -> 23809.5 | K9: =IF(J9='Задача 8'!J10,"верно","пересчитай") -> пересчитай | L9: =IF(L8=6,"верно","пересчитай") -> пересчитай | M9: пересчитай | N9: пересчитай | O9: пересчитай | P9: пересчитай
H10: максимальная стоимость квартиры, $ | J10: =MAX(I2:I7) -> 401598 | K10: =IF(J10='Задача 8'!J11,"верно","пересчитай") -> пересчитай
H11: максимальная стоимость квартиры, руб | J11: =MAX(J2:J7) ->  | K11: =IF(J11='Задача 8'!J12,"верно","пересчитай") -> 
H12: разница минимальной и максимальной стоимости квартир,$ | J12: =MAX(I2:I7)-MIN(I2:I7) -> 377788.5 | K12: =IF(J12='Задача 8'!J13,"верно","пересчитай") -> пересчитай

Sheet резул8
A1: стоимость квартиры,$ | B1: Налог на приватизацию,$ | C1: плата агенству по продаже недвжимости,$ | D1: стоимость перевода и регистрации недвижимости,$ | E1: общая стоимость квартры и услуг,$ | F1: общая стоимость квартиры и услуг, руб
A2: =REPT('рас зад8'!L9,1) -> пересчитай | B2: =REPT('рас зад8'!M9,1) -> пересчитай | C2: =REPT('рас зад8'!N9,1) -> пересчитай | D2: =REPT('рас зад8'!O9,1) -> пересчитай | E2: =REPT('рас зад8'!P9,1) -> пересчитай | F2: =REPT('рас зад8'!Q9,1) -> 
A4: минимальная стоимость квартиры, руб | C4: =REPT('рас зад8'!K8,1) -> 
A5: минимальная стоимость квартиры, $ | C5: =REPT('рас зад8'!K9,1) -> пересчитай
A6: максимальная стоимость квартиры, $ | C6: =REPT('рас зад8'!K10,1) -> пересчитай
A7: максимальная стоимость квартиры, руб | C7: =REPT('рас зад8'!K11,1) -> 
A8: разница минимальной и максимальной стоимости квартир,$ | C8: =REPT('рас зад8'!K12,1) -> пересчитай

Sheet Задача 9
A2: номер автобуса | B2: маршрут автобуса | C2: дата | D2: время отправления,ч, мин | E2: количество остановок | F2: продолжительность остановки, ч | G2: продолжительность все остановок,ч,мин | H2: время прибытия,ч,мин | I2: время в пути,ч,мин | J2: 1возможная задержка,мин | K2: фактическое время прибытие автобуса,ч,мин | L2: цена детского билета, руб | M2: цена взрослого билета,руб
A3: 67 | B3: ул. Двинская-ст.Балтийская | C3: 2003-09-10 | D3: 08:27:00 | E3: 10 | F3: 0.3 | H3: 09:27:00 | J3: 00:01:00 | M3: 7
A4: 66 | B4: ул. Двинская-ст.м.Автово | C4: 2003-09-10 | D4: 08:42:00 | E4: 6 | F4: 0.2 | H4: 09:24:00 | J4: 00:02:00 | M4: 5
A5: 35 | B5: Канарейский ост.-пр.Стачек | C5: 2003-09-10 | D5: 08:01:00 | E5: 12 | F5: 0.3 | H5: 09:01:00 | J5: 00:03:00 | M5: 8
A6: 22 | B6: ул. Двинская-ул.Синявская | C6: 2003-09-10 | D6: 07:43:00 | E6: 14 | F6: 0.9 | H6: 08:24:00 | J6: 00:02:00 | M6: 5
G7: Минимальная стоимость взрослого билета,руб
G8: Минимальная стоимость детского билет,рб
G9: Максимальная стоимость взрослого билета, руб
G10: Максимальная стоимость детского билета, руб
G11: Средняя стоимость взрослого билета,руб
G12: Средняя стоимость детского билета,руб

Sheet расч зад9 (hidden)
A1: номер автобуса | B1: маршрут автобуса | C1: дата | D1: время отправления,ч, мин | E1: количество остановок | F1: продолжительность остановки, ч | G1: продолжительность все остановок,ч,мин | H1: время прибытия,ч,мин | I1: время в пути,ч,мин | J1: 1возможная задержка,мин | K1: фактическое время прибытие автобуса,ч,мин | L1: цена детского билета, руб | M1: цена взрослого билета,руб | O1: продолжительность все остановок,ч,мин | P1: время в пути,ч,мин | Q1: фактическое время прибытие автобуса,ч,мин | R1: цена детского билета, руб
A2: 67 | B2: ул. Двинская-ст.Балтийская | C2: 2003-09-10 | D2: 08:27:00 | E2: 10 | F2: 0.3 | G2: =E2*F2 -> 3 | H2: 09:27:00 | I2: =H2-D2 -> 01:00:00 | J2: 00:01:00 | K2: =H2+J2 -> 09:28:00 | L2: =0.3*M2 -> 2.1 | M2: 7 | O2: =IF(G2='Задача 9'!G3,1,0) -> 0 | P2: =IF(I2='Задача 9'!I3,1,0) -> 0 | Q2: =IF(K2='Задача 9'!K3,1,0) -> 0 | R2: =IF(L2='Задача 9'!L3,1,0) -> 0
A3: 66 | B3: ул. Двинская-ст.м.Автово | C3: 2003-09-10 | D3: 08:42:00 | E3: 6 | F3: 0.2 | G3: =E3*F3 -> 1.2 | H3: 09:24:00 | I3: =H3-D3 -> 00:42:00 | J3: 00:02:00 | K3: =H3+J3 -> 09:26:00 | L3: =0.3*M3 -> 1.5 | M3: 5 | O3: =IF(G3='Задача 9'!G4,1,0) -> 0 | P3: =IF(I3='Задача 9'!I4,1,0) -> 0 | Q3: =IF(K3='Задача 9'!K4,1,0) -> 0 | R3: =IF(L3='Задача 9'!L4,1,0) -> 0
A4: 35 | B4: Канарейский ост.-пр.Стачек | C4: 2003-09-10 | D4: 08:01:00 | E4: 12 | F4: 0.3 | G4: =E4*F4 -> 3.6 | H4: 09:01:00 | I4: =H4-D4 -> 01:00:00 | J4: 00:03:00 | K4: =H4+J4 -> 09:04:00 | L4: =0.3*M4 -> 2.4 | M4: 8 | O4: =IF(G4='Задача 9'!G5,1,0) -> 0 | P4: =IF(I4='Задача 9'!I5,1,0) -> 0 | Q4: =IF(K4='Задача 9'!K5,1,0) -> 0 | R4: =IF(L4='Задача 9'!L5,1,0) -> 0
A5: 22 | B5: ул. Двинская-ул.Синявская | C5: 2003-09-10 | D5: 07:43:00 | E5: 14 | F5: 0.9 | G5: =E5*F5 -> 12.6 | H5: 08:24:00 | I5: =H5-D5 -> 00:41:00 | J5: 00:02:00 | K5: =H5+J5 -> 08:26:00 | L5: =0.3*M5 -> 1.5 | M5: 5 | O5: =IF(G5='Задача 9'!G6,1,0) -> 0 | P5: =IF(I5='Задача 9'!I6,1,0) -> 0 | Q5: =IF(K5='Задача 9'!K6,1,0) -> 0 | R5: =IF(L5='Задача 9'!L6,1,0) -> 0
G6: Минимальная стоимость взрослого билета,руб | J6: =MIN(M2:M5) -> 5 | K6: =IF(J6='Задача 9'!J7,"верно","пересчитай") -> пересчитай | O6: =SUM(O2:O5) -> 0 | P6: =SUM(P2:P5) -> 0 | Q6: =SUM(Q2:Q5) -> 0 | R6: =SUM(R2:R5) -> 0
G7: Минимальная стоимость детского билет,рб | J7: =MIN(L2:L5) -> 1.5 | K7: =IF(J7='Задача 9'!J8,"верно","пересчитай") -> пересчитай | O7: =IF(O6=4,"верно","пересчитай") -> пересчитай | P7: =IF(P6=4,"верно","пересчитай") -> пересчитай | Q7: =IF(Q6=4,"верно","пересчитай") -> пересчитай | R7: =IF(R6=4,"верно","пересчитай") -> пересчитай
G8: Максимальная стоимость взрослого билета, руб | J8: =MAX(M2:M5) -> 8 | K8: =IF(J8='Задача 9'!J9,"верно","пересчитай") -> пересчитай
G9: Максимальная стоимость детского билета, руб | J9: =MAX(L2:L5) -> 2.4 | K9: =IF(J9='Задача 9'!J10,"верно","пересчитай") -> пересчитай
G10: Средняя стоимость взрослого билета,руб | J10: =AVERAGE(M2:M5) -> 6.25 | K10: =IF(J10='Задача 9'!J11,"верно","пересчитай") -> пересчитай
G11: Средняя стоимость детского билета,руб | J11: =AVERAGE(L2:L5) -> 1.875 | K11: =IF(J11='Задача 9'!J12,"верно","пересчитай") -> пересчитай

Sheet резул9
A1: продолжительность все остановок,ч,мин | B1: время в пути,ч,мин | C1: фактическое время прибытие автобуса,ч,мин | D1: цена детского билета, руб
A2: =REPT('расч зад9'!O7,1) -> пересчитай | B2: =REPT('расч зад9'!P7,1) -> пересчитай | C2: =REPT('расч зад9'!Q7,1) -> пересчитай | D2: =REPT('расч зад9'!R7,1) -> пересчитай
A5: Минимальная стоимость взрослого билета,руб | D5: =REPT('расч зад9'!K6,1) -> пересчитай
A6: Минимальная стоимость детского билет,рб | D6: =REPT('расч зад9'!K7,1) -> пересчитай
A7: Максимальная стоимость взрослого билета, руб | D7: =REPT('расч зад9'!K8,1) -> пересчитай
A8: Максимальная стоимость детского билета, руб | D8: =REPT('расч зад9'!K9,1) -> пересчитай
A9: Средняя стоимость взрослого билета,руб | D9: =REPT('расч зад9'!K10,1) -> пересчитай
A10: Средняя стоимость детского билета,руб | D10: =REPT('расч зад9'!K11,1) -> пересчитай

Sheet Задача 10
A2: фамилия плательщика | B2: адрес | C2: плата за квадратный метр,руб | D2: метраж квартиры,кв.м. | E2: плата за квартиру | F2: количество проживающих в квартире | G2: холодная вода,руб | H2: отопление,руб | I2: газ,руб | J2: горячая вода,руб | K2: техническое обслуживание,руб | L2: уборка лестничных клеток,руб | M2: капремонт,руб | N2: общая стоимость,руб | O2: коэффициент скидки | P2: оплата со скидкой по льготе,руб | Q2: итого к оплате,руб
A3: Иванов И.К. | B3: пр. Стачек | C3: 20 | D3: 60 | E3: =C3*D3 -> 1200 | F3: 4 | O3: 0.5
A4: Петров О.П. | B4: пл. Ленина | C4: 14 | D4: 55 | E4: 770 | F4: 4 | O4: 0
A5: Сидоров И.В. | B5: ул. Губина | C5: 30 | D5: 48 | E5: 1440 | F5: 3 | O5: 0
A6: Лукичев С.Н. | B6: пр. Стачек | C6: 25 | D6: 50 | E6: 1250 | F6: 3 | O6: 0.5
A7: Быков К.М. | B7: ул.Садовая | C7: 35 | D7: 42 | E7: 1470 | F7: 2 | O7: 0.5
A8: Зубков К.М. | B8: ул.Замшина | C8: 23 | D8: 58 | E8: 1334 | F8: 4 | O8: 0
A11: вид платежа | B11: холодная вода,руб | C11: отопление,руб | D11: газ,руб | E11: горячая вода,руб | F11: техническое обслуживание,руб | G11: уборка лестничных клеток,руб | H11: капремонт,руб | I11: радио | J11: антенна
A12: действующая ставка,руб | B12: 78.06 | C12: 5.49 | D12: 9.3 | E12: 88.72 | F12: 0.51 | G12: 0.24 | H12: 1 | I12: 14 | J12: 28

Sheet расч зад10 (hidden)
A2: фамилия плательщика | B2: адрес | C2: плата за квадратный метр,руб | D2: метраж квартиры,кв.м. | E2: плата за квартиру | F2: количество проживающих в квартире | G2: холодная вода,руб | H2: отопление,руб | I2: газ,руб | J2: горячая вода,руб | K2: техническое обслуживание,руб | L2: уборка лестничных клеток,руб | M2: капремонт,руб | N2: общая стоимость,руб | O2: коэффициент скидки | P2: оплата со скидкой по льготе,руб | Q2: итого к оплате,руб
A3: Иванов И.К. | B3: пр. Стачек | C3: 20 | D3: 60 | E3: =C3*D3 -> 1200 | F3: 4 | G3: =F3*$B$12 -> 312.24 | H3: =D3*$C$12 -> 329.4 | I3: =F3*$D$12 -> 37.2 | J3: =F3*$E$12 -> 354.88 | K3: =D3*$F$12 -> 30.6 | L3: =D3*$G$12 -> 14.4 | M3: =D3*$H$12 -> 60 | N3: =E3+SUM(G3:M3)+$I$12+$J$12 -> 2380.72 | O3: 0.5 | P3: =N3*O3 -> 1190.36 | Q3: =IF(O3>0,P3,N3) -> 1190.36
A4: Петров О.П. | B4: пл. Ленина | C4: 14 | D4: 55 | E4: 770 | F4: 4 | G4: 312.24 | H4: 301.95 | I4: =F4*$D$12 -> 37.2 | J4: =F4*$E$12 -> 354.88 | K4: =D4*$F$12 -> 28.05 | L4: =D4*$G$12 -> 13.2 | M4: =D4*$H$12 -> 55 | N4: =E4+SUM(G4:M4)+$I$12+$J$12 -> 1914.52 | O4: 0 | P4: =N4*O4 -> 0 | Q4: =IF(O4>0,P4,N4) -> 1914.52
A5: Сидоров И.В. | B5: ул. Губина | C5: 30 | D5: 48 | E5: 1440 | F5: 3 | G5: 234.18 | H5: 263.52 | I5: 27.9 | J5: 266.16 | K5: 24.48 | L5: 11.52 | M5: 48 | N5: 2357.76 | O5: 0 | P5: 0 | Q5: 2357.76
A6: Лукичев С.Н. | B6: пр. Стачек | C6: 25 | D6: 50 | E6: 1250 | F6: 3 | G6: 234.18 | H6: 274.5 | I6: 27.9 | J6: 266.16 | K6: 25.5 | L6: 12 | M6: 50 | N6: 2182.24 | O6: 0.5 | P6: 1091.12 | Q6: 1091.12
A7: Быков К.М. | B7: ул.Садовая | C7: 35 | D7: 42 | E7: 1470 | F7: 2 | G7: 156.12 | H7: 230.58 | I7: 18.6 | J7: 177.44 | K7: 21.42 | L7: 10.08 | M7: 42 | N7: 2168.24 | O7: 0.5 | P7: 1084.12 | Q7: 1084.12
A8: Зубков К.М. | B8: ул.Замшина | C8: 23 | D8: 58 | E8: 1334 | F8: 4 | G8: 312.24 | H8: 318.42 | I8: 37.2 | J8: 354.88 | K8: 29.58 | L8: 13.92 | M8: 58 | N8: 2500.24 | O8: 0 | P8: 0 | Q8: 2500.24
A11: вид платежа | B11: холодная вода,руб | C11: отопление,руб | D11: газ,руб | E11: горячая вода,руб | F11: техническое обслуживание,руб | G11: уборка лестничных клеток,руб | H11: капремонт,руб | I11: радио | J11: антенна
A12: действующая ставка,руб | B12: 78.06 | C12: 5.49 | D12: 9.3 | E12: 88.72 | F12: 0.51 | G12: 0.24 | H12: 1 | I12: 14 | J12: 28
A14: холодная вода,руб | B14: отопление,руб | C14: газ,руб | D14: горячая вода,руб | E14: техническое обслуживание,руб | F14: уборка лестничных клеток,руб | G14: капремонт,руб | H14: общая стоимость,руб | I14: оплата со скидкой по льготе,руб | J14: итого к оплате,руб
A15: =IF(G3='Задача 10'!G3,1,0) -> 0 | B15: =IF(H3='Задача 10'!H3,1,0) -> 0 | C15: =IF(I3='Задача 10'!I3,1,0) -> 0 | D15: =IF(J3='Задача 10'!J3,1,0) -> 0 | E15: =IF(K3='Задача 10'!K3,1,0) -> 0 | F15: =IF(L3='Задача 10'!L3,1,0) -> 0 | G15: =IF(M3='Задача 10'!M3,1,0) -> 0 | H15: =IF(N3='Задача 10'!N3,1,0) -> 0 | I15: =IF(P3='Задача 10'!P3,1,0) -> 0 | J15: =IF(Q3='Задача 10'!Q3,1,0) -> 0
A16: =IF(G4='Задача 10'!G4,1,0) -> 0 | B16: =IF(H4='Задача 10'!H4,1,0) -> 0 | C16: =IF(I4='Задача 10'!I4,1,0) -> 0 | D16: =IF(J4='Задача 10'!J4,1,0) -> 0 | E16: =IF(K4='Задача 10'!K4,1,0) -> 0 | F16: =IF(L4='Задача 10'!L4,1,0) -> 0 | G16: =IF(M4='Задача 10'!M4,1,0) -> 0 | H16: =IF(N4='Задача 10'!N4,1,0) -> 0 | I16: =IF(P4='Задача 10'!P4,1,0) -> 1 | J16: =IF(Q4='Задача 10'!Q4,1,0) -> 0
A17: =IF(G5='Задача 10'!G5,1,0) -> 0 | B17: =IF(H5='Задача 10'!H5,1,0) -> 0 | C17: =IF(I5='Задача 10'!I5,1,0) -> 0 | D17: =IF(J5='Задача 10'!J5,1,0) -> 0 | E17: =IF(K5='Задача 10'!K5,1,0) -> 0 | F17: =IF(L5='Задача 10'!L5,1,0) -> 0 | G17: =IF(M5='Задача 10'!M5,1,0) -> 0 | H17: =IF(N5='Задача 10'!N5,1,0) -> 0 | I17: =IF(P5='Задача 10'!P5,1,0) -> 1 | J17: =IF(Q5='Задача 10'!Q5,1,0) -> 0
A18: =IF(G6='Задача 10'!G6,1,0) -> 0 | B18: =IF(H6='Задача 10'!H6,1,0) -> 0 | C18: =IF(I6='Задача 10'!I6,1,0) -> 0 | D18: =IF(J6='Задача 10'!J6,1,0) -> 0 | E18: =IF(K6='Задача 10'!K6,1,0) -> 0 | F18: =IF(L6='Задача 10'!L6,1,0) -> 0 | G18: =IF(M6='Задача 10'!M6,1,0) -> 0 | H18: =IF(N6='Задача 10'!N6,1,0) -> 0 | I18: =IF(P6='Задача 10'!P6,1,0) -> 0 | J18: =IF(Q6='Задача 10'!Q6,1,0) -> 0
A19: =IF(G7='Задача 10'!G7,1,0) -> 0 | B19: =IF(H7='Задача 10'!H7,1,0) -> 0 | C19: =IF(I7='Задача 10'!I7,1,0) -> 0 | D19: =IF(J7='Задача 10'!J7,1,0) -> 0 | E19: =IF(K7='Задача 10'!K7,1,0) -> 0 | F19: =IF(L7='Задача 10'!L7,1,0) -> 0 | G19: =IF(M7='Задача 10'!M7,1,0) -> 0 | H19: =IF(N7='Задача 10'!N7,1,0) -> 0 | I19: =IF(P7='Задача 10'!P7,1,0) -> 0 | J19: =IF(Q7='Задача 10'!Q7,1,0) -> 0
A20: =IF(G8='Задача 10'!G8,1,0) -> 0 | B20: =IF(H8='Задача 10'!H8,1,0) -> 0 | C20: =IF(I8='Задача 10'!I8,1,0) -> 0 | D20: =IF(J8='Задача 10'!J8,1,0) -> 0 | E20: =IF(K8='Задача 10'!K8,1,0) -> 0 | F20: =IF(L8='Задача 10'!L8,1,0) -> 0 | G20: =IF(M8='Задача 10'!M8,1,0) -> 0 | H20: =IF(N8='Задача 10'!N8,1,0) -> 0 | I20: =IF(P8='Задача 10'!P8,1,0) -> 1 | J20: =IF(Q8='Задача 10'!Q8,1,0) -> 0
A21: =SUM(A15:A20) -> 0 | B21: 0 | C21: 0 | D21: 0 | E21: 0 | F21: 0 | G21: 0 | H21: 0 | I21: 3 | J21: 0
A22: =IF(A21=6,"верно","пересчитай") -> пересчитай | B22: =IF(B21=6,"верно","пересчитай") -> пересчитай | C22: пересчитай | D22: пересчитай | E22: пересчитай | F22: пересчитай | G22: пересчитай | H22: пересчитай | I22: пересчитай | J22: пересчитай

Sheet резул 10
A1: холодная вода,руб | B1: отопление,руб | C1: газ,руб | D1: горячая вода,руб | E1: техническое обслуживание,руб | F1: уборка лестничных клеток,руб | G1: капремонт,руб | H1: общая стоимость,руб | I1: оплата со скидкой по льготе,руб | J1: итого к оплате,руб
A2: =REPT('расч зад10'!A22,1) -> пересчитай | B2: =REPT('расч зад10'!B22,1) -> пересчитай | C2: =REPT('расч зад10'!C22,1) -> пересчитай | D2: =REPT('расч зад10'!D22,1) -> пересчитай | E2: =REPT('расч зад10'!E22,1) -> пересчитай | F2: =REPT('расч зад10'!F22,1) -> пересчитай | G2: =REPT('расч зад10'!G22,1) -> пересчитай | H2: =REPT('расч зад10'!H22,1) -> пересчитай | I2: =REPT('расч зад10'!I22,1) -> пересчитай | J2: =REPT('расч зад10'!J22,1) -> пересчитай

Sheet Задача 11
A2: наименование изделия | B2: единица измерения товара | C2: количество | D2: цена за единицу товара,руб | E2: скидка при оптовой закупке,% | F2: стоимость товара,руб | G2: стоимость товара с учетом скидки,руб
A3: Фирма "Ладога Форест"
A4: брус | B4: куб.м | C4: 20 | D4: 2500 | E4: 5
A5: доска необрезная | B5: куб.м | C5: 13 | D5: 1500 | E5: 5
A6: доска обрезная | B6: куб.м | C6: 26 | D6: 1700 | E6: 5
A7: вагонка | B7: куб.м | C7: 6 | D7: 2100 | E7: 5
A8: штапик | B8: погон.метр | C8: 50 | D8: 140 | E8: 5
A9: плинтус | B9: погон.метр | C9: 100 | D9: 170 | E9: 5
A10: наличник | B10: рулоны | C10: 35 | D10: 180 | E10: 5
A11: рама 600х800мм | B11: шт. | C11: 4 | D11: 150 | E11: 5
A12: рама 1000х1200мм | B12: шт. | C12: 6 | D12: 1900 | E12: 5
A13: рубероид | B13: рулоны | C13: 17 | D13: 70 | E13: 5
A14: фанера 1500х1500 мм | B14: шт. | C14: 30 | D14: 130 | E14: 5
A15: ДВП | B15: кв.м. | C15: 87 | D15: 30.5 | E15: 5
A16: ДСП | B16: кв.м. | C16: 56 | D16: 40.5 | E16: 5
A17: стекло | B17: кв.м. | C17: 23 | D17: 40 | E17: 5
A18: дверь | B18: шт. | C18: 2 | D18: 254.6 | E18: 5
A19: гвозди 100мм | B19: кг | C19: 30 | D19: 40.8 | E19: 5
A20: гвозди 120 мм | B20: кг | C20: 40 | D20: 50.1 | E20: 5
A21: Фирма "Строительные материалы"
A22: брус | B22: куб.м | C22: 20 | D22: 2840 | E22: 7
A23: доска необрезная | B23: куб.м | C23: 13 | D23: 1380 | E23: 7
A24: доска обрезная | B24: куб.м | C24: 26 | D24: 1690 | E24: 7
A25: вагонка | B25: куб.м | C25: 6 | D25: 2220 | E25: 7
A26: штапик | B26: погон.метр | C26: 50 | D26: 340 | E26: 7
A27: плинтус | B27: погон.метр | C27: 100 | D27: 120 | E27: 7
A28: наличник | B28: рулоны | C28: 35 | D28: 160 | E28: 7
A29: рама 600х800мм | B29: шт. | C29: 4 | D29: 190 | E29: 7
A30: рама 1000х1200мм | B30: шт. | C30: 6 | D30: 200 | E30: 7
A31: рубероид | B31: рулоны | C31: 17 | D31: 40.7 | E31: 7
A32: фанера 1500х1500 мм | B32: шт. | C32: 30 | D32: 110.5 | E32: 7
A33: ДВП | B33: кв.м. | C33: 87 | D33: 20.4 | E33: 7
A34: ДСП | B34: кв.м. | C34: 56 | D34: 50.4 | E34: 7
A35: стекло | B35: кв.м. | C35: 23 | D35: 240 | E35: 7
A36: дверь | B36: шт. | C36: 2 | D36: 310 | E36: 7
A37: гвозди 100мм | B37: кг | C37: 30 | D37: 39 | E37: 7
A38: гвозди 120 мм | B38: кг | C38: 40 | D38: 48 | E38: 7
A41: стоимость товара Фирмы "Ладога Форест",руб
A42: стоимость товара Фирмы "Строительные материалы",руб
A43: стоимость товара Фирмы "Ладога Форест" со скидкой,руб
A44: стоимость товара Фирмы "Строительные материалы" со скидкой,руб
A45: средняя стоимость всех материалов Фирмы "Ладога Форест" ,руб
A46: средняя стоимость всех материалов Фирмы "Строительные материалы" ,руб

Sheet расч зад 11 (hidden)
A2: наименование изделия | B2: единица измерения товара | C2: количество | D2: цена за единицу товара,руб | E2: скидка при оптовой закупке,% | F2: стоимость товара,руб | G2: стоимость товара с учетом скидки,руб | I2: стоимость товара,руб | J2: стоимость товара с учетом скидки,руб
A3: Фирма "Ладога Форест" | I3: Фирма "Ладога Форест"
A4: брус | B4: куб.м | C4: 20 | D4: 2500 | E4: 5 | F4: =C4*D4 -> 50000 | G4: =F4-F4*E4/100 -> 47500 | I4: =IF(F4='Задача 11'!F4,1,0) -> 0 | J4: =IF(G4='Задача 11'!G4,1,0) -> 0
A5: доска необрезная | B5: куб.м | C5: 13 | D5: 1500 | E5: 5 | F5: =C5*D5 -> 19500 | G5: =F5-F5*E5/100 -> 18525 | I5: =IF(F5='Задача 11'!F5,1,0) -> 0 | J5: =IF(G5='Задача 11'!G5,1,0) -> 0
A6: доска обрезная | B6: куб.м | C6: 26 | D6: 1700 | E6: 5 | F6: 44200 | G6: 41990 | I6: =IF(F6='Задача 11'!F6,1,0) -> 0 | J6: =IF(G6='Задача 11'!G6,1,0) -> 0
A7: вагонка | B7: куб.м | C7: 6 | D7: 2100 | E7: 5 | F7: 12600 | G7: 11970 | I7: =IF(F7='Задача 11'!F7,1,0) -> 0 | J7: =IF(G7='Задача 11'!G7,1,0) -> 0
A8: штапик | B8: погон.метр | C8: 50 | D8: 140 | E8: 5 | F8: 7000 | G8: 6650 | I8: =IF(F8='Задача 11'!F8,1,0) -> 0 | J8: =IF(G8='Задача 11'!G8,1,0) -> 0
A9: плинтус | B9: погон.метр | C9: 100 | D9: 170 | E9: 5 | F9: 17000 | G9: 16150 | I9: =IF(F9='Задача 11'!F9,1,0) -> 0 | J9: =IF(G9='Задача 11'!G9,1,0) -> 0
A10: наличник | B10: рулоны | C10: 35 | D10: 180 | E10: 5 | F10: 6300 | G10: 5985 | I10: =IF(F10='Задача 11'!F10,1,0) -> 0 | J10: =IF(G10='Задача 11'!G10,1,0) -> 0
A11: рама 600х800мм | B11: шт. | C11: 4 | D11: 150 | E11: 5 | F11: 600 | G11: 570 | I11: =IF(F11='Задача 11'!F11,1,0) -> 0 | J11: =IF(G11='Задача 11'!G11,1,0) -> 0
A12: рама 1000х1200мм | B12: шт. | C12: 6 | D12: 1900 | E12: 5 | F12: 11400 | G12: 10830 | I12: =IF(F12='Задача 11'!F12,1,0) -> 0 | J12: =IF(G12='Задача 11'!G12,1,0) -> 0
A13: рубероид | B13: рулоны | C13: 17 | D13: 70 | E13: 5 | F13: 1190 | G13: 1130.5 | I13: =IF(F13='Задача 11'!F13,1,0) -> 0 | J13: =IF(G13='Задача 11'!G13,1,0) -> 0
A14: фанера 1500х1500 мм | B14: шт. | C14: 30 | D14: 130 | E14: 5 | F14: 3900 | G14: 3705 | I14: =IF(F14='Задача 11'!F14,1,0) -> 0 | J14: =IF(G14='Задача 11'!G14,1,0) -> 0
A15: ДВП | B15: кв.м. | C15: 87 | D15: 30.5 | E15: 5 | F15: 2653.5 | G15: 2520.825 | I15: =IF(F15='Задача 11'!F15,1,0) -> 0 | J15: =IF(G15='Задача 11'!G15,1,0) -> 0
A16: ДСП | B16: кв.м. | C16: 56 | D16: 40.5 | E16: 5 | F16: 2268 | G16: 2154.6 | I16: =IF(F16='Задача 11'!F16,1,0) -> 0 | J16: =IF(G16='Задача 11'!G16,1,0) -> 0
A17: стекло | B17: кв.м. | C17: 23 | D17: 40 | E17: 5 | F17: 920 | G17: 874 | I17: =IF(F17='Задача 11'!F17,1,0) -> 0 | J17: =IF(G17='Задача 11'!G17,1,0) -> 0
A18: дверь | B18: шт. | C18: 2 | D18: 254.6 | E18: 5 | F18: 509.2 | G18: 483.74 | I18: =IF(F18='Задача 11'!F18,1,0) -> 0 | J18: =IF(G18='Задача 11'!G18,1,0) -> 0
A19: гвозди 100мм | B19: кг | C19: 30 | D19: 40.8 | E19: 5 | F19: 1224 | G19: 1162.8 | I19: =IF(F19='Задача 11'!F19,1,0) -> 0 | J19: =IF(G19='Задача 11'!G19,1,0) -> 0 | K19: =IF(K20=17,"верно","пересчитай") -> пересчитай | L19: =IF(L20=17,"верно","пересчитай") -> пересчитай
A20: гвозди 120 мм | B20: кг | C20: 40 | D20: 50.1 | E20: 5 | F20: =C20*D20 -> 2004 | G20: =F20-F20*E20/100 -> 1903.8 | I20: =IF(F20='Задача 11'!F20,1,0) -> 0 | J20: =IF(G20='Задача 11'!G20,1,0) -> 0 | K20: =SUM(I4:I20) -> 0 | L20: =SUM(J4:J20) -> 0
A21: Фирма "Строительные материалы" | I21: Фирма "Строительные материалы"
A22: брус | B22: куб.м | C22: 20 | D22: 2840 | E22: 7 | F22: =C22*D22 -> 56800 | G22: =F22-F22*E22/100 -> 52824 | I22: =IF(F22='Задача 11'!F22,1,0) -> 0 | J22: =IF(G22='Задача 11'!G22,1,0) -> 0
A23: доска необрезная | B23: куб.м | C23: 13 | D23: 1380 | E23: 7 | F23: =C23*D23 -> 17940 | G23: =F23-F23*E23/100 -> 16684.2 | I23: =IF(F23='Задача 11'!F23,1,0) -> 0 | J23: =IF(G23='Задача 11'!G23,1,0) -> 0
A24: доска обрезная | B24: куб.м | C24: 26 | D24: 1690 | E24: 7 | F24: 43940 | G24: 40864.2 | I24: =IF(F24='Задача 11'!F24,1,0) -> 0 | J24: =IF(G24='Задача 11'!G24,1,0) -> 0
A25: вагонка | B25: куб.м | C25: 6 | D25: 2220 | E25: 7 | F25: 13320 | G25: 12387.6 | I25: =IF(F25='Задача 11'!F25,1,0) -> 0 | J25: =IF(G25='Задача 11'!G25,1,0) -> 0
A26: штапик | B26: погон.метр | C26: 50 | D26: 340 | E26: 7 | F26: 17000 | G26: 15810 | I26: =IF(F26='Задача 11'!F26,1,0) -> 0 | J26: =IF(G26='Задача 11'!G26,1,0) -> 0
A27: плинтус | B27: погон.метр | C27: 100 | D27: 120 | E27: 7 | F27: 12000 | G27: 11160 | I27: =IF(F27='Задача 11'!F27,1,0) -> 0 | J27: =IF(G27='Задача 11'!G27,1,0) -> 0
A28: наличник | B28: рулоны | C28: 35 | D28: 160 | E28: 7 | F28: 5600 | G28: 5208 | I28: =IF(F28='Задача 11'!F28,1,0) -> 0 | J28: =IF(G28='Задача 11'!G28,1,0) -> 0
A29: рама 600х800мм | B29: шт. | C29: 4 | D29: 190 | E29: 7 | F29: 760 | G29: 706.8 | I29: =IF(F29='Задача 11'!F29,1,0) -> 0 | J29: =IF(G29='Задача 11'!G29,1,0) -> 0
A30: рама 1000х1200мм | B30: шт. | C30: 6 | D30: 200 | E30: 7 | F30: 1200 | G30: 1116 | I30: =IF(F30='Задача 11'!F30,1,0) -> 0 | J30: =IF(G30='Задача 11'!G30,1,0) -> 0
A31: рубероид | B31: рулоны | C31: 17 | D31: 40.7 | E31: 7 | F31: 691.9 | G31: 643.467 | I31: =IF(F31='Задача 11'!F31,1,0) -> 0 | J31: =IF(G31='Задача 11'!G31,1,0) -> 0
A32: фанера 1500х1500 мм | B32: шт. | C32: 30 | D32: 110.5 | E32: 7 | F32: 3315 | G32: 3082.95 | I32: =IF(F32='Задача 11'!F32,1,0) -> 0 | J32: =IF(G32='Задача 11'!G32,1,0) -> 0
A33: ДВП | B33: кв.м. | C33: 87 | D33: 20.4 | E33: 7 | F33: 1774.8 | G33: 1650.564 | I33: =IF(F33='Задача 11'!F33,1,0) -> 0 | J33: =IF(G33='Задача 11'!G33,1,0) -> 0
A34: ДСП | B34: кв.м. | C34: 56 | D34: 50.4 | E34: 7 | F34: 2822.4 | G34: 2624.832 | I34: =IF(F34='Задача 11'!F34,1,0) -> 0 | J34: =IF(G34='Задача 11'!G34,1,0) -> 0
A35: стекло | B35: кв.м. | C35: 23 | D35: 240 | E35: 7 | F35: 5520 | G35: 5133.6 | I35: =IF(F35='Задача 11'!F35,1,0) -> 0 | J35: =IF(G35='Задача 11'!G35,1,0) -> 0
A36: дверь | B36: шт. | C36: 2 | D36: 310 | E36: 7 | F36: 620 | G36: 576.6 | I36: =IF(F36='Задача 11'!F36,1,0) -> 0 | J36: =IF(G36='Задача 11'!G36,1,0) -> 0
A37: гвозди 100мм | B37: кг | C37: 30 | D37: 39 | E37: 7 | F37: 1170 | G37: 1088.1 | I37: =IF(F37='Задача 11'!F37,1,0) -> 0 | J37: =IF(G37='Задача 11'!G37,1,0) -> 0 | K37: =IF(K38=17,"верно","пересчитай") -> пересчитай | L37: =IF(L38=17,"верно","пересчитай") -> пересчитай
A38: гвозди 120 мм | B38: кг | C38: 40 | D38: 48 | E38: 7 | F38: 1920 | G38: 1785.6 | I38: =IF(F38='Задача 11'!F38,1,0) -> 0 | J38: =IF(G38='Задача 11'!G38,1,0) -> 0 | K38: =SUM(I22:I38) -> 0 | L38: =SUM(J22:J38) -> 0
A41: стоимость товара Фирмы "Ладога Форест",руб | C41: =SUM(F4:F20) -> 183268.7 | D41: =IF(C41='Задача 11'!C41,"верно","пересчитай") -> пересчитай
A42: стоимость товара Фирмы "Строительные материалы",руб | C42: =SUM(F22:F38) -> 186394.1 | D42: =IF(C42='Задача 11'!C42,"верно","пересчитай") -> пересчитай
A43: стоимость товара Фирмы "Ладога Форест" со скидкой,руб | C43: =SUM(G4:G20) -> 174105.265 | D43: =IF(C43='Задача 11'!C43,"верно","пересчитай") -> пересчитай
A44: стоимость товара Фирмы "Строительные материалы" со скидкой,руб | C44: =SUM(G22:G38) -> 173346.513 | D44: =IF(C44='Задача 11'!C44,"верно","пересчитай") -> пересчитай
A45: средняя стоимость всех материалов Фирмы "Ладога Форест" ,руб | C45: =AVERAGE(F4:F20) -> 10780.51176 | D45: =IF(C45='Задача 11'!C45,"верно","пересчитай") -> пересчитай
A46: средняя стоимость всех материалов Фирмы "Строительные материалы" ,руб | C46: =AVERAGE(F22:F38) -> 10964.35882 | D46: =IF(C46='Задача 11'!C46,"верно","пересчитай") -> пересчитай

Sheet резул 11
A1: стоимость товара,руб | B1: стоимость товара с учетом скидки,руб | J1: стоимость товара Фирмы "Ладога Форест",руб | N1: =REPT('расч зад 11'!D41,1) -> пересчитай
A2: Фирма "Ладога Форест" | J2: стоимость товара Фирмы "Строительные материалы",руб | N2: =REPT('расч зад 11'!D42,1) -> пересчитай
A3: =REPT('расч зад 11'!K19,1) -> пересчитай | B3: =REPT('расч зад 11'!L19,1) -> пересчитай | J3: стоимость товара Фирмы "Ладога Форест" со скидкой,руб | N3: =REPT('расч зад 11'!D43,1) -> пересчитай
A4: Фирма "Строительные материалы" | J4: стоимость товара Фирмы "Строительные материалы" со скидкой,руб | N4: =REPT('расч зад 11'!D44,1) -> пересчитай
A5: =REPT('расч зад 11'!K37,1) -> пересчитай | B5: =REPT('расч зад 11'!L37,1) -> пересчитай | J5: средняя стоимость всех материалов Фирмы "Ладога Форест" ,руб | N5: =REPT('расч зад 11'!D45,1) -> пересчитай
J6: средняя стоимость всех материалов Фирмы "Строительные материалы" ,руб | N6: =REPT('расч зад 11'!D46,1) -> пересчитай

Sheet Лист5
